Workbook

Sheet Background
AD57: z

Sheet Inputs (hidden)
A1: Form/Tab | B1: Input Description | C1: Entered Value | D1: Default | E1: Unit | F1: Tag / Named Range | G1: Recommendation | H1: LowVal | I1: HighVal | J1: Column1 | K1: Column2 | L1: Evaluated by ARI | M1: LowVal_old | N1: HighVal_old | O1: Comments ARI (Nov 2013) | P1: Do not delete | Q1: ControlTipComments
B2: Flag indicating whether the scenario was saved (Y or null)
A3: Start | B3: Scenario ID: | C3: 4 | F3: inputScenID | L3: NA
A4: Start | B4: Scenario Description: | C4: On-site Electricity Generation - Engine | D4: engine | E4: RecipEngines | F4: inputScenario | L4: NA
A5: User | B5: Scenario Name: | C5: new_US | F5: inputScenName | L5: NA | Q5: This will be the title on the ouput reports. Label it with the scenario being used.
A6: Start | B6: Percent methane in drainage gas | C6: 90 | D6: 50 | E6: % | F6: inputPctMethane | L6: NA
A7: Start | B7: Drainage System? | C7: N | F7: inputDrainageSystem | L7: NA
A8: Start | B8: Drainage Source | C8: GW | F8: inputDrainageSource | L8: NA
A9: Start | B9: Include Flares | C9: NF | F9: inputScenFlare | L9: NA
A10: Drainage | B10: What is the cost of well-head blowers? | D10: 1000 | E10: $/HP | F10: drainage1 | G10: [500-1,500] | L10: ok | Q10: Examples http://www.epa.gov/cmop/docs/stu002.pdf
A11: Drainage | B11: What is the cost of satellite compressors? | C11: 1000 | D11: 1000 | E11: $/HP | F11: drainage2 | G11: [500-1,500] | L11: ok | Q11: Examples http://www.epa.gov/cmop/docs/stu002.pdf
A12: Drainage | B12: What is the distance from the drainage area to the onsite project? | C12: 21000 | D12: 21000 | E12: ft | F12: drainage3 | G12: [5,000-25,000] | L12: ok | O12: Remove recommendation | Q12: Used to calculate the capital cost of installing header pipe from the drainage area.
A13: Drainage | B13: What is the cost of installing header pipe from the drainage area? | C13: 40 | D13: 40 | E13: $/ft | F13: drainage4 | G13: [20-120] | L13: ok | Q13: Examples http://www.epa.gov/cmop/docs/stu002.pdf
A14: Drainage | B14: What are the compressor and blower efficiencies? | C14: 0.035 | D14: 0.035 | E14: HP/mcfd | F14: drainage5 | G14: [0.02-0.07] | H14: 0.02 | I14: 0.07 | L14: ok | M14: 0.02 | N14: 0.07
A15: Drainage | B15: What is the spacing between gob drainage wells? | C15: 1000 | D15: 1000 | E15: ft | F15: drainage6 | G15: [300-3,000] | L15: ok | O15: Added "gob" to question; range added according to Primer referenced in control tip | Q15: Will vary with mining rate and gas content - See "CMM Recovery - A Primer" p.35 www.epa.gov/cmop/docs/cmm_primer.pdf
A16: Drainage | B16: What is the mining rate? | C16: 12000 | D16: 12000 | E16: ft/yr | F16: drainage7 | G16: [7,000-15,000] | L16: ok | Q16: Typical US rates are 150 to 300 feet per week depending on seam thickness and mining conditions. See manual for formula to convert tons/yr mining rate to ft/yr.
A17: Drainage | B17: What is the mine depth? | D17: 1000 | E17: ft | F17: drainage8 | G17: [120-2,500] | L17: ok | O17: range added based on Gassy Mine Profiles depths | Q17: U.S. Coal Mine Depths www.ilcoalassn.com/underground-mining.html
A18: Drainage | B18: What is the drilling cost? | D18: 140 | E18: $/ft | F18: drainage9 | G18: [120-200] | L18: OK | O18: Checked - reasonable; range added based on examples in Primer | Q18: Include completion cost. See "CMM Recovery - A Primer" p.17 for examples. www.epa.gov/cmop/docs/cmm_primer.pdf
A19: Drainage | B19: What is the fraction of this project's drainage system cost that will be included in the analysis? | D19: 100 | E19: % | F19: drainage10 | G19: [0-100] | H19: 0 | I19: 100 | L19: ok | M19: 0 | N19: 100 | Q19: See note below.
A20: Drainage | B20: How many drainage wells are being utilized? | F20: drainage7alt | L20: ok | Q20: AMM scenario
A21: GasAvail | B21: What do you expect the CMM drained per day to be? | C21: 1250 | E21: mcf/d | F21: gas1zz | G21: [See footnote.] | L21: ok | O21: 100 Mcfd * # of wells (conservative) | Q21: See note at foot of page.
A22: GasAvail | B22: How much coal is dried per hour? | E22: t/h | F22: gas2zz | G22: [500-1,000] | L22: added rec | O22: Added rec figure. Modern US plants = 800-1000 t/hr | Q22: Modern US plants = 800-1000 t/hr
A23: GasAvail | B23: What is the dryer efficiency? | D23: 50 | E23: % | F23: gas3zz | G23: [40-65] | H23: 40 | I23: 65 | L23: ok | M23: 40 | N23: 65
A24: GasAvail | B24: What is the heat required per ton of coal? | D24: 0.3 | E24: mmBtu/t | F24: gas4zz | G24: [0.15-0.4] | H24: 0.1 | I24: 0.6 | L24: change vals | M24: 0.15 | N24: 0.4 | O24: Increase range of low/high vlaue
A25: GasAvail | B25: What is the boiler capacity? | E25: mmBtu/h | F25: gas5zz | G25: [1-250] | L25: ok | O25: 1BHP = 33,479 Btu/hr http://www.engineeringtoolbox.com/boiler-capacity-d_1115.html | Q25: www.engineeringtoolbox.com/boiler-capacity-d_1115.html
A26: GasAvail | B26: What is the fraction of CMM available after losses? | C26: 95 | D26: 95 | E26: % | F26: gas6zz | G26: [80-99] | H26: 80 | I26: 99 | L26: ok | M26: 80 | N26: 99 | O26: BHP = boiler horse power = 13.15 normal Hp = 9.8095 KW
A27: GasAvail | B27: What is the average boiler load? | E27: mmBtu/h | F27: gas7zz | L27: ok | O27: Will be a percentage of boiler capacity. U.S. Boiler Characteristics - www1.eere.energy.gov/industry/distributedenergy/pdfs/characterization_industrial_commerical_boiler_population.pdf | Q27: Will be a percentage of boiler capacity. U.S. Boiler Characteristics - www1.eere.energy.gov/industry/distributedenergy/pdfs/characterization_industrial_commerical_boiler_population.pdf
A28: GasAvail | B28: What percent methane is the drained gas? | C28: 90 | E28: % | F28: gas8zz | G28: [40-90] | L28: ok | O28: www1.eere.energy.gov/industry/distributedenergy/pdfs/characterization_industrial_commerical_boiler_population.pdf | Q28: Alert will show if methane % is too low for scenario.
A29: GasAvail | B29: What percent methane is in the ventilation air? | E29: % | F29: gas9zz | G29: [0.25-1.25] | L29: ok | O29: For StandaloneVAM | Q29: Typical VAM contains < 1.5 % methane.
A30: GasAvail | B30: What do you expect the recoverable ventilation air flow to be? | E30: mcf/m | F30: gas10zz | G30: [200-550] | L30: ok | O30: For StandaloneVAM (rec values added) | Q30: In the U.S., typical underground mines release 200-550 mcf/min (~100-250 cm/s) of ventilation exhaust air. www.epa.gov/cmop/docs/VAM-exhaust-characterization-July2010.pdf
A31: GasAvail | B31: What percent methane is in the ventilation air? | E31: % | F31: gas11zz | G31: [<0.25] | L31: ok | O31: For Supplemented VAM | Q31: Should be less than 0.3% methane. If greater, investigate Standalone VAM scenario.
A32: GasAvail | B32: What do you expect the recoverable ventilation air flow to be? | E32: mcf/m | F32: gas12zz | G32: [200-550] | L32: ok | O32: For Supplemented VAM (rec values added) | Q32: In the U.S., typical underground mines release 200-550 mcf/min (~100-250 cm/s) of ventilation exhaust air. www.epa.gov/cmop/docs/VAM-exhaust-characterization-July2010.pdf
A33: GasAvail | B33: What is the target methane in the ventilation air after supplementation? | E33: % | F33: gas13zz | G33: [0.3-1.25] | L33: ok
A34: GasAvail | B34: What do you expect the supplemental CMM drained per day to be? | E34: mcf/d | F34: gas1alt | G34: [See footnote.] | L34: ok | Q34: See note at bottom of screen.
A35: GasAvail | B35: What is the fraction of supplemental CMM available after losses? | D35: 95 | E35: % | F35: gas6alt | G35: [80-99] | H35: 0 | I35: 99 | L35: ok | M35: 80 | N35: 99 | Q35: Should be above 80% and ideally above 90%
A36: GasAvail | B36: What percent methane is the supplemental drained gas? | E36: % | F36: gas8alt | G36: [40-90] | H36: 40 | L36: ok | Q36: The minimum figure required will vary depending on end use.
A37: User | B37: For what price can CMM-based electricity be sold? | C37: 0.07 | D37: 0.07 | E37: $/kWh | F37: user1 | G37: [0.03-0.10] | H37: 0 | L37: changed low val | M37: 0.04 | N37: 0.1 | O37: Average wholesale prices from EIA July 2013 | Q37: Average wholesale prices from EIA July 2013
A38: User | B38: What is the cost of electric power used by the project? | D38: 70 | E38: $/MWh | F38: user2 | G38: [50-90] | H38: 0 | L38: ok | M38: 50 | N38: 90 | Q38: Determine from local power costs.
A39: User | B39: Capital cost of treatment, engine-gen set, & electrical equipment? | C39: 1.15 | D39: 1.15 | E39: $000/kW | F39: user3 | G39: [0.400-1.500] | H39: 0 | I39: 1.5 | L39: ok | M39: 1.1 | N39: 1.5 | O39: Range modified to account for low cost of Chineese engines
A40: User | B40: What is the O&M cost of the reciprocating engine? | C40: 0.02 | D40: 0.02 | E40: $/kWh | F40: user4 | G40: [0.015-0.03] | H40: 0.015 | I40: 0.03 | L40: ok | M40: 0.015 | N40: 0.03 | Q40: Expressed as a $rate per KWh
A41: User | B41: What interest rate is charged for the loan? | C41: 0 | D41: 0 | E41: % | F41: user5 | G41: [Prime plus 1-3%] | H41: 0 | I41: 100 | L41: ok | M41: 1 | N41: 100 | O41: If developer equity=0% then no loan needed | Q41: Enter "0" if developer's equity share is 100%
A42: User | B42: What is the overall efficiency of the engine-generator set? | C42: 35 | D42: 35 | E42: % (LHV) | F42: user6 | G42: [30-44] | H42: 30 | I42: 44 | L42: ok | M42: 30 | N42: 44
A43: User | B43: What is the capital cost to convert the coal dryer? | D43: 7.5 | E43: $000/mmBtu/h | F43: user7 | G43: [5-13] | H43: 5 | I43: 13 | L43: ok | M43: 5 | N43: 13 | Q43: In $1,000s per million Btus per hour
A44: User | B44: What is the carbon credit unit sale price? | C44: 2 | D44: 2 | E44: $/tonne CO2E | F44: user8 | G44: [0-13] | H44: 0 | I44: 50 | L44: low&high val | M44: 2 | N44: 8 | O44: remove price constraints; range added - upper end based on carbon prices in the California cap-and-trade scheme (Price on April 1, 2015. Source: World Bank. 2015. Carbon Pricing Watch 2015. Washington, DC: World Bank._ | Q44: Zero can be used if carbon credit pricing does not factor into the economics. Revenues from the sale of certified emission reductions assume a one year lag between credit generation and monitization.
A45: User | B45: What is the price of the methane sold to the pipeline? | D45: 4 | E45: $/mmBtu(HHV) | F45: user9 | G45: [2.00-12.00] | L45: changed l&h vals | M45: 5 | N45: 12 | O45: changed rec values and remove low-high values | Q45: Check current EIA US prices at: http://www.eia.gov/naturalgas/weekly/
A46: User | B46: What is the cost per ton of coal replaced by gas? | E46: $/ton | F46: user10 | G46: [25-50] | H46: 10 | I46: 150 | L46: changed l&h vals | M46: 25 | N46: 50 | O46: EIA 2011 US figures | Q46: Check current EIA US figures www.eia.gov/coal/news_markets/index.cfm
A47: User | B47: What is the capital cost to convert the coal boiler to gas? | D47: 7.5 | E47: $000/mmBtu/h | F47: user11 | G47: [5-13] | H47: 5 | I47: 13 | L47: ok | M47: 5 | N47: 13
A48: User | B48: What is the developer's equity share in the project? | C48: 100 | D48: 100 | E48: % | F48: user12 | G48: [0-100] | H48: 0 | I48: 100 | L48: ok | M48: 0 | N48: 100 | Q48: Often 100%
A49: User | B49: What is the distance to the natural gas pipeline? | E49: ft | F49: user13 | L49: ok | Q49: Distance from project to sale outlet
A50: User | B50: What is the installed cost of the high pressure line from the project site to the natural gas pipeline? | D50: 55 | E50: $/ft | F50: user14 | G50: [40-70] | L50: ok | Q50: Used in the calculation of capital costs
A51: User | B51: What is the loan term? | C51: 5 | D51: 5 | E51: years | F51: user15 | G51: [5 - project lifetime] | L51: ok | O51: y | Q51: Leave as "5" if developer's equity share is 100%
A52: User | B52: What is the planned project operational lifetime? | C52: 10 | D52: 10 | E52: years | F52: user16 | G52: [10-20] | L52: ok | O52: y
A53: User | B53: -- | F53: user17 | Q53: --
A54: User | B54: What percent of CMM is consumed by prime-mover use? | C54: 7 | D54: 7 | E54: % | F54: user18 | G54: [5-10] | H54: 0 | I54: 100 | L54: ok | M54: 0 | N54: 100 | O54: range added; recommended value lowered from 10% to 7% based on RRR peer review comments | Q54: Machine that transforms energy from thermal, electrical, or pressure into mechanical form to perform work (e.g., engines and turbines)
A55: User | B55: What is the capital cost of the enclosed flare? | D55: 0.28 | E55: $000/mcfd | F55: user19 | G55: [0.12-0.45] | H55: 0.12 | I55: 0.45 | L55: ok | M55: 0.12 | N55: 0.45
A56: User | B56: What is the O&M cost of the enclosed flare? | D56: 15 | E56: $000/year | F56: user20 | G56: [10-20] | H56: 0 | I56: 100 | L56: ok | M56: 10 | N56: 20 | O56: remove price constraints | Q56: In $1,000s per year
A57: User | B57: What is the capital cost of the open flare? | D57: 0.08 | E57: $000/mcfd | F57: user21 | G57: [0.03-0.13] | H57: 0.03 | I57: 0.13 | L57: ok | M57: 0.03 | N57: 0.13
A58: User | B58: What is the O&M cost of the open flare? | D58: 10 | E58: $000/year | F58: user22 | G58: [5-15] | H58: 5 | I58: 15 | L58: ok | M58: 5 | N58: 15
A59: User | B59: What is the installed capital cost of the VAM oxidation system? | E59: $/cfm | F59: user23 | G59: [20-25] | L59: check with Clark
A60: User | B60: What is the annual operating and maintenance of the VAM system? | E60: $/cfm-yr | F60: user24 | G60: [1.00-1.60] | L60: check with Clark
A61: User | B61: What is the frequency VAM system will be relocated? | E61: years | F61: user25 | G61: [1-10] | L61: change | O61: min year changed from 3 to 1. | Q61: Number of years for system move between ventilation shafts
A62: User | B62: What is VAM system relocation cost (incl. new site prep)? | E62: $/cfm | F62: user26 | G62: [3-5] | L62: ok | Q62: In dollars per cubic feet per minute
A63: User | B63: What is the electrical load of the oxidizer blowers? | E63: kWh/mcf | F63: user27 | G63: [0.05-0.10] | L63: ok
A64: User | B64: What is the price of sold CNG? | D64: 2 | E64: $/GGE | F64: user28 | G64: [0.80-2.50] | L64: ok | O64: Included May 2015; range and default added based on AFDC data | Q64: See USDOE Alternative Fuels Data Center (website) - Fuel Prices (www.afdc.energy.gov/fuels/prices.html)
A65: User | B65: What is the price of sold LNG? | E65: $/mmBtu(HHV) | F65: user29 | G65: [2-20] | H65: 0 | L65: ok | O65: Included June 2015 | Q65: www.eia.gov/dnav/ng/ng_pri_sum_dcu_nus_m.htm
A66: User | B66: What is the size of the CNG distribution system? | D66: 800 | E66: GGE/day | F66: user30 | G66: [20-2,000] | H66: 0 | L66: ok | O66: Added May 2015 | Q66: See manual for reference to a 2014 USDOE paper on CNG costs, giving descriptions of typical CNG station sizes.
A67: User | B67: What is the installed capital cost of the CNG system? | D67: 1000 | E67: $/GGE | F67: user31 | G67: [500-1,500] | H67: 0 | L67: ok | O67: Added May 2015 | Q67: See manual for reference to a 2014 USDOE paper on CNG costs, giving descriptions of typical CNG station sizes and capital costs.
A68: User | B68: What is the installed capital cost of the LNG system? | D68: 3000 | E68: $,000 | F68: user32 | G68: [2,000-4,000] | H68: 0 | L68: ok | O68: Added June 2015. Value from Clark's LNG example. | Q68: Includes liquefaction system, onsite storage tanks and distribution equipment
A69: User | B69: What is the O&M cost of the LNG system? | D69: 1.5 | E69: $/mcfd | F69: user33 | G69: [1-4] | H69: 0 | L69: ok | O69: Added June 2015. Value from Clark's LNG example.
A70: User | B70: What are the LNG miscellaneous capital costs? | E70: $/mcfd | F70: user34 | H70: 0 | L70: ok | O70: Not used | Q70: Includes onsite storage tanks, a truck scale and electrical generator set
A71: User | B71: What is the distance to the LNG sales point? | E71: miles | F71: user35 | H71: 0 | L71: ok | O71: Not used
A72: User | B72: What is the cost to transport LNG? | E72: $/ton/mile | F72: user36 | H72: 0 | L72: ok | O72: Not used | Q72: Cost per mile is a function of how many tons of LNG are being transported
A73: User | B73: What is the cost of the oxygen removal system? | D73: 1250 | E73: $,000 | F73: user37 | G73: [1,000-2,000]
A74: User | B74: What is the O&M cost of the CNG system? | D74: 0.35 | E74: $/GGE/day | F74: user38 | G74: [0.28-0.42] | O74: Default value from http://www.marcellus.psu.edu/s_files/pdf/3-Harkelrod.pdf.
A75: User
A76: User
A77: User
A78: Default | B78: How many hours per year will the coal dryer operate? | D78: 8000 | E78: hrs/year | F78: default1 | G78: [4,500-8,300] | H78: 4300 | I78: 8760 | L78: changed l&h vals | M78: 7500 | N78: 8300 | O78: changed low&high vals to give more input flexibility | Q78: 8,000 hrs = 91% operational
A79: Default | B79: How many hours per year will the flare operate? | D79: 8000 | E79: hrs/year | F79: default2 | G79: [4,500-8,300] | H79: 4300 | I79: 8760 | L79: changed l&h vals | M79: 7500 | N79: 8300 | O79: changed low&high vals to give more input flexibility | Q79: 8,000 hrs = 91% operational
A80: Default | B80: How many hours per year will the mine boiler operate? | D80: 8000 | E80: hrs/year | F80: default3 | G80: [4,500-8,300] | H80: 4300 | I80: 8760 | L80: changed l&h vals | M80: 7500 | N80: 8300 | O80: changed low&high vals to give more input flexibility | Q80: 8,000 hrs = 91% operational
A81: Default | B81: How many hours per year will the engine operate? | C81: 8000 | D81: 8000 | E81: hrs/year | F81: default4 | G81: [4,500-8,300] | H81: 4300 | I81: 8760 | L81: changed l&h vals | M81: 7500 | N81: 8300 | O81: changed low&high vals to give more input flexibility | Q81: 8,000 hrs = 91% operational
A82: Default | B82: How many hours per year will the project operate? | D82: 8000 | E82: hrs/year | F82: default5 | G82: [4,500-8,300] | H82: 4300 | I82: 8760 | L82: changed l&h vals | M82: 7500 | N82: 8300 | O82: changed low&high vals to give more input flexibility | Q82: 8,000 hrs = 91% operational
A83: Default | B83: -- | F83: default6 | Q83: --
A84: Default | B84: What is the contingency factor? | C84: 5 | D84: 5 | E84: % | F84: default7 | G84: [5-10] | H84: 0 | I84: 100 | L84: ok | M84: 0 | N84: 100
A85: Default | B85: What is the annual escalation rate for carbon credits? | C85: 2 | D85: 2 | E85: % | F85: default8 | G85: [0-3] | H85: 0 | I85: 100 | L85: ok | M85: 0 | N85: 100
A86: Default | B86: Electric Grid Emission Factor (Tonnes CO2/MWh) | D86: 0.59 | E86: Tonnes CO2/MWh | F86: default9 | G86: [0.40-1.20]
A87: Default | B87: -- | F87: default10 | Q87: --
A88: Default | B88: What are the royalty and severance taxes? | C88: 0 | E88: % | F88: default11 | G88: [0-20] | H88: 0 | I88: 100 | L88: ok | M88: 0 | N88: 100 | O88: Changed to an annual operating cost. Negotiation fees removed and added to soft costs (capital expenditure). Default taken out | Q88: See explanation in manual. Treated in the model as an operating cost. Vary widely by US State. See http://www.ncsl.org/research/energy/oil-and-gas-severance-taxes.aspx.
A89: Default | B89: -- | F89: default12
A90: Default | F90: default13
A91: Default | B91: What are the "soft" costs for the project? | C91: 5 | D91: 5 | E91: % | F91: default14 | G91: [5-25] | O91: Added for version 3 | Q91: Express as % of capital costs. Can include permits and authorization costs; negotiation fees; local taxes; land fees; staffing and other corporate overhead during development.
A92: Default | B92: What is the validation, verification and transaction cost to monetize carbon credits? | C92: 0.5 | D92: 0.5 | E92: $/tCO2e | F92: default15 | G92: [0.20-1.00] | O92: Added for version 3 | Q92: Total carbon credit monetization costs are usually between US$0.30-1.00 per tCO2e.
A93: Default | B93: -- | F93: default16
A94: Default | B94: -- | F94: default17
A95: Default | B95: -- | F95: default18
A96: Default | B96: -- | F96: default19
A97: Default | B97: Which GWP value is used? | C97: 25 | D97: 25 | F97: default20 | G97: [21-25] | H97: 21 | I97: 50 | L97: ok | O97: Added April 2015 to give user options - upper level value set at 50 to allow for changes in future IPCC reports | Q97: The UN IPCC 5th Assessment Report (2014) uses a Global Warming Potential (GWP) value of 25 - this is used as the default in the model. The user has the option of changing this to a value used in another Report if desired.
A98: Default | B98: What is the inflation rate? | C98: 2.5 | D98: 2.5 | E98: % | F98: default21 | G98: [1.0-4.0] | H98: 0 | I98: 100 | L98: ok | M98: 0 | N98: 100
A99: Default | B99: -- | F99: default22
A100: Default | F100: default23
A101: Default | B101: -- | F101: default24
A102: Default | B102: -- | F102: default25
A103: Default | B103: What is the real discount rate? | C103: 12 | D103: 12 | E103: % | F103: default26 | G103: [7-15] | H103: 0 | I103: 100 | L103: ok | M103: 0 | N103: 100
A104: Default | B104: -- | F104: default27
A105: Default | B105: -- | F105: default28
A106: Default | B106: -- | F106: default29
A107: Default | B107: -- | F107: default30
A108: Default | B108: What is the avoided coal handling cost? | D108: 0.75 | E108: $/ton | F108: default31 | G108: [0.50-1.00] | H108: 0.5 | I108: 1 | L108: ok | M108: 0.5 | N108: 1
A109: Default | B109: What is the replaced coal's fuel value? | D109: 24 | E109: mmBtu/ton | F109: default32 | G109: [23-26] | H109: 23 | I109: 26 | L109: ok | M109: 23 | N109: 26
A110: Default | B110: How many hours per year will the VAM system operate? | D110: 8000 | E110: hrs/year | F110: default33 | G110: [4,500-8,300] | H110: 4300 | I110: 8760 | L110: changed l&h vals | M110: 7500 | N110: 8300 | O110: y

Sheet CashFlows
B1: Coalbed Methane Scenario: new_US
B2: Construction Year | C2: Year 1 | D2: Year 2 | E2: Year 3 | F2: Year 4 | G2: Year 5 | H2: Year 6 | I2: Year 7 | J2: Year 8 | K2: Year 9 | L2: Year 10 | M2: Year 11 | N2: Year 12 | O2: Year 13 | P2: Year 14 | Q2: Year 15 | R2: Year 16 | S2: Year 17 | T2: Year 18 | U2: Year 19 | V2: Year 20
A3: Savings or Product Revenues | C3: 2395.906604 | D3: 2455.804269 | E3: 2517.199376 | F3: 2580.12936 | G3: 2644.632594 | H3: 2710.748409 | I3: 2778.517119 | J3: 2847.980047 | K3: 2919.179549 | L3: 2992.159037 | M3: 0 | N3: 0 | O3: 0 | P3: 0 | Q3: 0 | R3: 0 | S3: 0 | T3: 0 | U3: 0 | V3: 0
A4: Carbon Credit Revenues | D4: 337.9129032 | E4: 344.6711613 | F4: 351.5645845 | G4: 358.5958762 | H4: 365.7677937 | I4: 373.0831496 | J4: 380.5448126 | K4: 388.1557088 | L4: 395.918823 | M4: 403.8371995 | N4: 0 | O4: 0 | P4: 0 | Q4: 0 | R4: 0 | S4: 0 | T4: 0 | U4: 0 | V4: 0
A5: Operating Costs | C5: -1247.121442 | D5: -1278.299478 | E5: -1310.256965 | F5: -1343.013389 | G5: -1376.588724 | H5: -1411.003442 | I5: -1446.278528 | J5: -1482.435491 | K5: -1519.496378 | L5: -1557.483788 | M5: 0 | N5: 0 | O5: 0 | P5: 0 | Q5: 0 | R5: 0 | S5: 0 | T5: 0 | U5: 0 | V5: 0
A6: Debt Service | C6: 0 | D6: 0 | E6: 0 | F6: 0 | G6: 0 | H6: 0 | I6: 0 | J6: 0 | K6: 0 | L6: 0 | M6: 0 | N6: 0 | O6: 0 | P6: 0 | Q6: 0 | R6: 0 | S6: 0 | T6: 0 | U6: 0 | V6: 0
A7: Net Cash Flow | B7: -6397.625901 | C7: 1148.785162 | D7: 1515.417695 | E7: 1551.613572 | F7: 1588.680556 | G7: 1626.639747 | H7: 1665.512761 | I7: 1705.321741 | J7: 1746.089369 | K7: 1787.838879 | L7: 1830.594073 | M7: 403.8371995 | N7: 0 | O7: 0 | P7: 0 | Q7: 0 | R7: 0 | S7: 0 | T7: 0 | U7: 0 | V7: 0

Sheet CoalDry (hidden)
A1: 1 - INPUT PARAMETERS | B1: Values | C1: units | D1: Comment | E1: Name | F1: Default | G1: Range
A2: =lblDrain1 -> What is the cost of well-head blowers? | B2: =drainage1 -> 0 | C2: $/HP
A3: =lblDrain2 -> What is the cost of satellite compressors? | B3: =drainage2 -> 1000 | C3: $/HP
A4: =lblDrain3 -> What is the distance from the drainage area to the onsite project? | B4: =drainage3 -> 21000 | C4: ft
A5: =lblDrain4 -> What is the cost of installing header pipe from the drainage area? | B5: =drainage4 -> 40 | C5: $/ft
A6: =lblDrain5 -> What are the compressor and blower efficiencies? | B6: =drainage5 -> 0.035 | C6: HP/mcfd
A7: =lblDrain6 -> What is the spacing between gob drainage wells? | B7: =drainage6 -> 1000 | C7: ft
A8: =lblDrain7 -> What is the mining rate? | B8: =drainage7 -> 12000 | C8: ft/yr
A9: =lblDrain7alt -> How many drainage wells are being utilized? | B9: =drainage7alt -> 0 | C9: wells
A10: What is the drainage gas source? | B10: =inputDrainageSource -> GW
A11: =lblDrain8 -> What is the mine depth? | B11: =drainage8 -> 0 | C11: ft/well
A12: =lblDrain9 -> What is the drilling cost? | B12: =drainage9 -> 0 | C12: $/ft
A13: =lblUser18 -> What percent of CMM is consumed by prime-mover use? | B13: =user18/100 -> 0.07
A14: =lblGas1 -> What do you expect the CMM drained per day to be? | B14: =gas1zz -> 1250 | C14: mcf/d | E14: coalCmmDrained
A15: CMM drained per hour | B15: =B14/24 -> 52.08333333 | C15: mcf/h
A16: =lblPctMethane -> Percent methane in drainage gas | B16: =inputPctMethane/100 -> 0.9 | D16: Use 40% for Coal Dry Feasibility Test
A17: Actual gas flow | B17: =IF(B16<>0,B14/B16,0) -> 1388.888889 | C17: mcf/d
A18: =lblUser16 -> What is the planned project operational lifetime? | B18: =user16 -> 10 | C18: years | E18: coalProjectLifetime
A19: =lblGas6 -> What is the fraction of CMM available after losses? | B19: =gas6zz/100 -> 0.95
A20: Average fuel available | B20: =B15*(B19-B13) -> 45.83333333 | C20: mcf/h
A21: Fuel value | B21: =B20*B33/1000 -> 41.70833333 | C21: mmBtu/h
A22: =lblGas2 -> How much coal is dried per hour? | B22: =gas2zz -> 0 | C22: t/h
A23: =lblDefault1 -> How many hours per year will the coal dryer operate? | B23: =default1 -> 0 | C23: h/y
A24: =lblGas4 -> What is the heat required per ton of coal? | B24: =gas4zz -> 0 | C24: mmBtu/ton
A25: =lblGas3 -> What is the dryer efficiency? | B25: =gas3zz/100 -> 0
A26: =lblUser7 -> What is the capital cost to convert the coal dryer? | B26: =user7 -> 0 | C26: $000/(mmBtu/h)
A27: =lblUser10 -> What is the cost per ton of coal replaced by gas? | B27: =user10 -> 0 | C27: $/ton
A28: =lblDefault31 -> What is the avoided coal handling cost? | B28: =default31 -> 0 | C28: $/ton
A29: =lblDefault32 -> What is the replaced coal's fuel value? | B29: =default32 -> 0 | C29: mmBtu/ton
A30: =lblDrain10 -> What is the fraction of this project's drainage system cost that will be included in the analysis? | B30: =drainage10/100 -> 0 | D30: added by JC 6/25
A31: Drainage and Transport sys unit cap cost | B31: =IF((B14*B19)<>0,(B3*B6)+(B4*B5*B16/(B14*B19))+(IF(B10="AM",B7*B5*B9*B16/(B14*B19),0))+ (B30*IF(inputDrainageSystem="Y",(B2*B6)+IF(B10="AM",B11*B12*B9*B16/(B14*B19),0),0)),0) -> 671.6315789 | C31: $/mcfd | D31: "X", tweaked by JC 6/25 | F31: Why is B16 - % methane used in this calculation
A32: Drainage and Transport O&M cost | B32: =IF(AND(inputDrainageSource="GW",(B14*B19)<>0,B23<>0),((B8*B5)+IF(AND(inputDrainageSystem="Y",B7<>0),B8*B11*B12*B30/B7,0))*B16*24/(B14*B19)/B23,0) -> 0 | C32: $/mcf | D32: "Y", tweaked by JC 6/25 | F32: RJL May 2015 - Check. Annual costs for AMM methane are very low. Does not include the drilling of new wells.
A33: CMM fuel value LHV | B33: 910 | C33: Btu/cf | D33: constant
A34: Weight of methane, tonnes | B34: 0.01926 | C34: tonnes/mcf | D34: constant
A35: =lblUser8 -> What is the carbon credit unit sale price? | B35: =user8 -> 2 | C35: $/tonne CO2E | E35: coalCER_UnitValue
A36: GWP ratio: methane to CO2 | B36: =default20 -> 25 | C36: ratio | D36: constant
A37: =lblDefault21 -> What is the inflation rate? | B37: =default21/100 -> 0.025 | E37: coalInflationRate
A38: =lblDefault26 -> What is the real discount rate? | B38: =default26/100 -> 0.12 | E38: coalRealDiscountRate
A39: =lblUser12 -> What is the developer's equity share in the project? | B39: =user12/100 -> 1 | E39: EquityPercent
A40: =lblUser15 -> What is the loan term? | B40: =user15 -> 5 | C40: yr | E40: loanTerm
A41: =lblUser5 -> What interest rate is charged for the loan? | B41: =user5/100 -> 0 | E41: InterestRate
A42: Cap Cost Factors
A43: =lblDefault7 -> What is the contingency factor? | B43: =default7/100 -> 0.05
A44: =lblDefault14 -> What are the "soft" costs for the project? | B44: =default14/100 -> 0.05
A45: Annual Cost Factors
A46: =lblDefault11 -> What are the royalty and severance taxes? | B46: =default11/100 -> 0
A47: =lblDefault15 -> What is the validation, verification and transaction cost to monetize carbon credits? | B47: =default15 -> 0.5 | C47: $/tCO2e
A49: 2 - Feasibility Test
A50: CMM heat value available/hour | B50: =B21 -> 41.70833333 | C50: mmBtu/h | D50: this is downstream availability | E50: heatAvailable
A51: Coal Dryer heat needed/hour | B51: =IF(B25<>0,B22*B24/B25,0) -> 0 | C51: mmBtu/h | E51: heatNeeded
A52: CMM volume needed/hour | B52: =IF(OR(B50<B51,inputScenFlare="OF",inputScenFlare="EF"),B50*1000/B33/(1-B13),B51*1000/B33/(1-B13)) -> 0 | C52: mcf/h | D52: incl prime mover, exclud fugitive
A53: CMM available for other uses | B53: =IF(OR(B51>B50, inputScenFlare="OF",inputScenFlare="EF",B19=0),0, B14-(B52*24/B19)) -> 1250 | C53: mcfd | D53: available at drainage wells | E53: coalCmmAvailable
A55: 3 - Calculate Annual Benefits
A56: Tons of coal replaced per hour | B56: =IF(B29<>0,IF(B50<B51,B50/B29,B51/B29),0) -> 0 | C56: ton/h
A57: Cost savings per hour - coal | B57: =B56*(B27+B28) -> 0 | C57: $/h
A58: Cost savings per year - coal | B58: =B57*B23/1000 -> 0 | C58: $000/y
A59: CMM volume needed/hour | B59: =B52 -> 0 | C59: mcf/h
A60: Tonnes CH4 needed/hour | B60: =B59*B34 -> 0 | C60: t/h
A61: Carbon credits earned per hour | B61: =B60*(B36+2) -> 0 | C61: t/h
A62: Carbon credits earned per year | B62: =B61*B23 -> 0 | C62: t/y | E62: CERsEarnedPerYear
A63: Carbon credit revenue per year | B63: =B62*B35/1000 -> 0 | C63: $000/y
A65: 4 - Calculate New Annual Costs
A66: CMM needed per hour | B66: =B52 -> 0 | C66: mcf/h
A67: Drain & transport O&M cost/h | B67: =IF(B16<>0,(B66*B32)/B16,0) -> 0 | C67: $/h
A68: Drain & transport O&M cost/yr | B68: =B67*B23/1000 -> 0 | C68: $000/y
A69: Back-up Flare O&M cost/yr | B69: =IF(inputScenFlare="OF",user22,IF(inputScenFlare="EF",user20,0)) -> 0
A70: Royalty and Severance Taxes | B70: =coalCmmDrained*365*B46*3/1000 -> 0 | D70: 3=Nat gas price $/mcf
A71: Carbon credit monetization cost/yr | B71: =B47*coalCERsEarnedPerYear/1000 -> 0
A72: Total annual cost | B72: =SUM(B68,B69,B71,B70) -> 0 | C72: $000/y | E72: TotalAnnualCost
A74: 5 - Calculate Project Capital Costs
A75: CMM needed per hour | B75: =B52 -> 0 | C75: mcf/h
A76: CMM transport system | B76: =IF(B16<>0,B31*B75*24/B16/1000,0) -> 0 | C76: $000
A77: Dryer conversion | B77: =IF(B50<B51, B50*B26,B51*B26) -> 0 | C77: $000
A78: Back-up Flare capital cost | B78: =IF(inputScenFlare="OF",B20*24*user21,IF(inputScenFlare="EF",B20*24*user19,0)) -> 0
A79: Subtotal | B79: =SUM(B76:B78) -> 0 | C79: $000
A80: Total cap cost with factors | B80: =(B79*(1+B44))*(1+B43) -> 0 | C80: $000 | E80: TotalCapCost
A82: 6 - Calculate Loan and Equity
A83: Loan amount | B83: =B80*(1-B39) -> 0 | C83: $000 | E83: LoanAmount
A84: Equity amount | B84: =B80*B39 -> 0 | C84: $000 | E84: EquityAmount
A86: 7 - Discounted Cash Flow Analysis | B86: ($000)
A87: Years >>> | B87: 0 | C87: 1 | D87: 2 | E87: 3 | F87: 4 | G87: 5 | H87: 6 | I87: 7 | J87: 8 | K87: 9 | L87: 10 | M87: 11 | N87: 12 | O87: 13 | P87: 14 | Q87: 15 | R87: 16 | S87: 17 | T87: 18 | U87: 19 | V87: 20
A88: A - Benefits
A89: Coal savings | C89: =IF(C$87<=$B$18,B58,0) -> 0 | D89: =IF(D$87<=$B$18,C89*(1+$B$37),0) -> 0 | E89: 0 | F89: 0 | G89: 0 | H89: 0 | I89: 0 | J89: 0 | K89: 0 | L89: 0 | M89: 0 | N89: 0 | O89: 0 | P89: 0 | Q89: 0 | R89: 0 | S89: 0 | T89: 0 | U89: 0 | V89: 0
A90: Carbon Credit Revenues | D90: =IF(C$87<=$B$18,$B63,0) -> 0 | E90: =IF(D$87<=$B$18,D90*(1+default8/100),0) -> 0 | F90: 0 | G90: 0 | H90: 0 | I90: 0 | J90: 0 | K90: 0 | L90: 0 | M90: 0 | N90: 0 | O90: 0 | P90: 0 | Q90: 0 | R90: 0 | S90: 0 | T90: 0 | U90: 0 | V90: 0 | W90: 0
A91: Total Benefits | C91: =SUM(C89:C90) -> 0 | D91: 0 | E91: 0 | F91: 0 | G91: 0 | H91: 0 | I91: 0 | J91: 0 | K91: 0 | L91: 0 | M91: 0 | N91: 0 | O91: 0 | P91: 0 | Q91: 0 | R91: 0 | S91: 0 | T91: 0 | U91: 0 | V91: 0
A92: B - Costs
A93: CMM transport cost + drain share | C93: =IF(C$87<=$B$18,-B72,0) -> 0 | D93: =IF(D$87<=$B$18,C93*(1+$B$37),0) -> 0 | E93: 0 | F93: 0 | G93: 0 | H93: 0 | I93: 0 | J93: 0 | K93: 0 | L93: 0 | M93: 0 | N93: 0 | O93: 0 | P93: 0 | Q93: 0 | R93: 0 | S93: 0 | T93: 0 | U93: 0 | V93: 0
A94: C - Cash Flow from Operations | C94: =SUM(C91:C93) -> 0 | D94: 0 | E94: 0 | F94: 0 | G94: 0 | H94: 0 | I94: 0 | J94: 0 | K94: 0 | L94: 0 | M94: 0 | N94: 0 | O94: 0 | P94: 0 | Q94: 0 | R94: 0 | S94: 0 | T94: 0 | U94: 0 | V94: 0
A96: D - Debt Service | C96: =IF(OR(C$87>$B$40,C$87>$B$18),0, PMT($B$41, $B$40, $B$83)) -> 0 | D96: 0 | E96: 0 | F96: 0 | G96: 0 | H96: 0 | I96: 0 | J96: 0 | K96: 0 | L96: 0 | M96: 0 | N96: 0 | O96: 0 | P96: 0 | Q96: 0 | R96: 0 | S96: 0 | T96: 0 | U96: 0 | V96: 0
A97: E - Net Cash Flow | B97: =-B84 -> 0 | C97: =SUM(C94:C96) -> 0 | D97: =SUM(D94:D96) -> 0 | E97: 0 | F97: 0 | G97: 0 | H97: 0 | I97: 0 | J97: 0 | K97: 0 | L97: 0 | M97: 0 | N97: 0 | O97: 0 | P97: 0 | Q97: 0 | R97: 0 | S97: 0 | T97: 0 | U97: 0 | V97: 0
A99: 8 - Financial Measurements: IRR, NPV, Payback
A100: Internal Rate of Return - IRR | C100: =IF(ISERR(IRR($B97:V97)),0,IRR($B97:V97)) -> 0
A101: Net Present Value | C101: =NPV(B38,C97:V97)+coalMinusEquityAmount -> 0
A102: Payback Period | C102: =SUM(C104:V104) -> 0
B103: =IF(B$87<=$B$18,SUM($B97:B97),0) -> 0 | C103: =IF(C$87<=$B$18,SUM($B97:C97),0) -> 0 | D103: =IF(D$87<=$B$18,SUM($B97:D97),0) -> 0 | E103: =IF(E$87<=$B$18,SUM($B97:E97),0) -> 0 | F103: =IF(F$87<=$B$18,SUM($B97:F97),0) -> 0 | G103: =IF(G$87<=$B$18,SUM($B97:G97),0) -> 0 | H103: =IF(H$87<=$B$18,SUM($B97:H97),0) -> 0 | I103: =IF(I$87<=$B$18,SUM($B97:I97),0) -> 0 | J103: =IF(J$87<=$B$18,SUM($B97:J97),0) -> 0 | K103: =IF(K$87<=$B$18,SUM($B97:K97),0) -> 0 | L103: =IF(L$87<=$B$18,SUM($B97:L97),0) -> 0 | M103: =IF(M$87<=$B$18,SUM($B97:M97),0) -> 0 | N103: =IF(N$87<=$B$18,SUM($B97:N97),0) -> 0 | O103: =IF(O$87<=$B$18,SUM($B97:O97),0) -> 0 | P103: =IF(P$87<=$B$18,SUM($B97:P97),0) -> 0 | Q103: =IF(Q$87<=$B$18,SUM($B97:Q97),0) -> 0 | R103: =IF(R$87<=$B$18,SUM($B97:R97),0) -> 0 | S103: =IF(S$87<=$B$18,SUM($B97:S97),0) -> 0 | T103: =IF(T$87<=$B$18,SUM($B97:T97),0) -> 0 | U103: =IF(U$87<=$B$18,SUM($B97:U97),0) -> 0 | V103: =IF(V$87<=$B$18,SUM($B97:V97),0) -> 0
C104: =IF(AND(C103>0,B103<0),C87+(1-C103/C97),0) -> 0 | D104: =IF(AND(D103>0,C103<0),D87+(1-D103/D97),0) -> 0 | E104: 0 | F104: 0 | G104: 0 | H104: 0 | I104: 0 | J104: 0 | K104: 0 | L104: 0 | M104: 0 | N104: 0 | O104: 0 | P104: 0 | Q104: 0 | R104: 0 | S104: 0 | T104: 0 | U104: 0 | V104: 0

Sheet SuppVAM (hidden)
A1: 1 - INPUT PARAMETERS | B1: Values | C1: units | D1: Comment | E1: Name | F1: Default | G1: Range
A2: =lblDrain1 -> What is the cost of well-head blowers? | B2: =drainage1 -> 0 | C2: $/HP
A3: =lblDrain2 -> What is the cost of satellite compressors? | B3: =drainage2 -> 1000 | C3: $/HP
A4: =lblDrain3 -> What is the distance from the drainage area to the onsite project? | B4: =drainage3 -> 21000 | C4: ft
A5: =lblDrain4 -> What is the cost of installing header pipe from the drainage area? | B5: =drainage4 -> 40 | C5: $/ft
A6: =lblDrain5 -> What are the compressor and blower efficiencies? | B6: =drainage5 -> 0.035 | C6: HP/mcfd
A7: =lblDrain6 -> What is the spacing between gob drainage wells? | B7: =drainage6 -> 1000 | C7: ft
A8: =lblDrain7 -> What is the mining rate? | B8: =drainage7 -> 12000 | C8: ft/yr
A9: =lblDrain7alt -> How many drainage wells are being utilized? | B9: =drainage7alt -> 0 | C9: wells
A10: What is the drainage gas source? | B10: =inputDrainageSource -> GW
A11: =lblDrain8 -> What is the mine depth? | B11: =drainage8 -> 0 | C11: ft/well
A12: =lblDrain9 -> What is the drilling cost? | B12: =drainage9 -> 0 | C12: $/ft
A13: =lblUser18 -> What percent of CMM is consumed by prime-mover use? | B13: =user18/100 -> 0.07
A14: What do you expect the supplemental CMM drained per day to be? | B14: =gas1alt -> 0 | C14: mcf/d | E14: CmmDrained
A15: CMM drained per hour | B15: =B14/24 -> 0 | C15: mcf/h
A16: =lblPctMethane -> Percent methane in drainage gas | B16: =gas8alt/100 -> 0
A17: Actual gas flow | B17: =IF(B16<>0,B14/B16,0) -> 0 | C17: mcf/d
A18: =lblUser16 -> What is the planned project operational lifetime? | B18: =user16 -> 10 | C18: years | E18: ProjectLifetime
A19: =lblGas6 -> What is the fraction of CMM available after losses? | B19: =gas6alt/100 -> 0
A20: Average fuel available | B20: =B15*(B19-B13) -> 0 | C20: mcf/h
A21: Fuel value | B21: =B20*B33/1000 -> 0 | C21: mmBtu/h
A22: What percent methane is in the ventilation air? | B22: =gas11zz/100 -> 0
A23: What do you expect the recoverable ventilation air flow to be? | B23: =gas12zz -> 0 | C23: mcf/m
A24: How many hours per year will the VAM system operate? | B24: =default33 -> 0 | C24: hours/yr
A25: What is the installed capital cost of VAM oxidizer system? | B25: =user23 -> 0 | C25: $/scfm
A26: What is the annual O&M cost of the VAM oxidizer system? | B26: =user24 -> 0 | C26: $/scfm-yr
A27: What is the frequency VAM system will be relocated? | B27: =user25 -> 0 | C27: years
A28: What is the VAM oxidation system relocation cost? | B28: =user26 -> 0 | C28: $/cfm
A29: What is the electrical load of the oxidizer blowers? | B29: =user27 -> 0 | C29: kWh/mcf | E29: << A new variable I just added.
A30: =lblDrain10 -> What is the fraction of this project's drainage system cost that will be included in the analysis? | B30: =drainage10/100 -> 0 | D30: added by JC 6/25
A31: Drainage and Transport sys unit cap cost | B31: =IF((B14*B19)<>0,(B3*B6)+(B4*B5*B16/(B14*B19))+(IF(B10="AM",B7*B5*B9*B16/(B14*B19),0))+ (B30*IF(inputDrainageSystem="Y",(B2*B6)+IF(B10="AM",B11*B12*B9*B16/(B14*B19),0),0)),0) -> 0 | C31: $/mcfd | D31: "X", tweaked by JC 6/25
A32: Drainage and Transport O&M cost | B32: =IF(AND(inputDrainageSource="GW",(B14*B19)<>0,B24<>0),((B8*B5)+IF(AND(inputDrainageSystem="Y",B7<>0),B8*B11*B12*B30/B7,0))*B16*24/(B14*B19)/B24,0) -> 0 | C32: $/mcf | D32: "Y", tweaked by JC 6/25
A33: CMM fuel value LHV | B33: 910 | C33: Btu/cf | D33: constant
A34: Weight of methane, tonnes | B34: 0.01926 | C34: tonnes/mcf | D34: constant
A35: =lblUser8 -> What is the carbon credit unit sale price? | B35: =user8 -> 2 | C35: $/tonne CO2E | E35: CER_UnitValue
A36: GWP ratio: methane to CO2 | B36: =default20 -> 25 | C36: ratio | D36: constant
A37: =lblDefault21 -> What is the inflation rate? | B37: =default21/100 -> 0.025 | E37: InflationRate
A38: =lblDefault26 -> What is the real discount rate? | B38: =default26/100 -> 0.12 | E38: RealDiscountRate
A39: =lblUser12 -> What is the developer's equity share in the project? | B39: =user12/100 -> 1 | E39: EquityPercent
A40: =lblUser15 -> What is the loan term? | B40: =user15 -> 5 | C40: yr | E40: loanTerm
A41: =lblUser5 -> What interest rate is charged for the loan? | B41: =user5/100 -> 0 | E41: InterestRate
A42: Cap Cost Factors
A43: =lblDefault7 -> What is the contingency factor? | B43: =default7/100 -> 0.05
A44: What is the cost of electric power used by the project? | B44: =user2 -> 0 | C44: $/MWh
A45: =lblDefault14 -> What are the "soft" costs for the project? | B45: =default14/100 -> 0.05
A46: Annual Cost Factors
A47: =lblDefault11 -> What are the royalty and severance taxes? | B47: =default11/100 -> 0
A48: =lblDefault15 -> What is the validation, verification and transaction cost to monetize carbon credits? | B48: =default15 -> 0.5 | C48: $/tCO2e
A49: 2 - Feasibility Test
A50: heat available | B50: =B21 -> 0 | C50: mmBtu/h | D50: this is downstream availability | E50: heatAvailable
A51: heat needed | B51: =B23*B16*(gas13zz/100-B22)*B33/(16.6667*B16-(gas13zz*16.6666/100)) ->  | C51: mmBtu/h | E51: CMM needed by oxidizer | H51: 16.6667 = ratio of 1000 cf/mcf divided by 60 min/hr for units conversion
A52: Supplemental methane volume consumed/hour | B52: =IF(OR(B50<B51,inputScenFlare="OF",inputScenFlare="EF"),B50*1000/B33/(1-B13),B51*1000/B33/(1-B13)) ->  | C52: mcf/h | D52: incl prime mover, exclud fugitive
A53: CMM available for other uses | B53: =IF(OR(B51>B50, inputScenFlare="OF",inputScenFlare="EF",B19=0),0, B14-(B52*24/B19)) ->  | C53: mcfd | D53: available at drainage wells | E53: CmmAvailable
A55: 3 - Calculate Annual Benefits
A56: Carbon credits earned from VAM destruction per year | B56: =+B23*B24*B22*B34*(B36-2.75)*0.95*60 -> 0 | C56: tonnes/y
A57: Carbon credits from supplemental gas destruction per year | B57: =B52*B34*(B36-2.75)*B24 ->  | C57: tonnes/y
A58: Carbon credit revenue per year | B58: =(B56+B57-((B23+(B17*B19/24/60))*B24*B29*60*default9/1000))*B35/1000 ->  | C58: $000/y
A59: Total credits earned per year | B59: =supVAMcers1+supVAMcers2 ->  | C59: tonnes/y | E59: CERsEarnedPerYear
A62: 4 - Calculate New Annual Costs
A63: Drain & transport O&M cost/yr | B63: =(IF(B16<>0,(B52*B32)/B16,0))*B24/1000 -> 0 | C63: $000/y
A64: Back-up Flare O&M cost/yr | B64: =IF(inputScenFlare="OF",user22,IF(inputScenFlare="EF",user20,0)) -> 0 | C64: $000/y
A65: VAM Oxidizer O&M | B65: =+(B23+(B17*B19/24/60))*B26*1000/1000 -> 0 | C65: $000/y
A66: VAM Oxidizer Electricity cost | B66: =(B23+(B17*B19/24/60))*B24*B29*B44*60/1000/1000 -> 0 | C66: $000/y
A67: Oxidizer Relocation cost | B67: =B28*(B23+(B17*B19/24/60))*1000/B27/1000 ->  | C67: $000/y
A68: Royalty and severance taxes cost/yr | B68: =((supvamCmmDrained*365*B47*3)+(B23*B22*60*B24*B47*3))/1000 -> 0
A69: Carbon credit monetization cost/yr | B69: =B48*supvamCERsEarnedPerYear/1000 ->  | C69: $000/y
A70: Total annual cost | B70: =SUM(B63:B69) ->  | C70: $000/y | E70: TotalAnnualCost
A71: 5 - Calculate Project Capital Costs
A72: CMM needed per hour | B72: =B52 ->  | C72: mcf/h
A73: CMM transport system | B73: =IF(B16<>0,B31*B72*24/B16/1000,0) -> 0 | C73: $000
A74: Installed Oxidizer Capital Cost | B74: =(B23+(B17*B19/24/60))*B25*1000/1000 -> 0 | C74: $000
A75: Back-up Flare capital cost | B75: =IF(inputScenFlare="OF",B20*24*user21,IF(inputScenFlare="EF",B20*24*user19,0)) -> 0 | C75: $000
A76: Subtotal | B76: =SUM(B73:B75) -> 0 | C76: $000
A77: Total cap cost with factors | B77: =(B76*(1+B45))*(1+B43) -> 0 | C77: $000 | E77: TotalCapCost
A79: 6 - Calculate Loan and Equity
A80: Loan amount | B80: =B77*(1-B39) -> 0 | C80: $000 | E80: LoanAmount
A81: Equity amount | B81: =B77*B39 -> 0 | C81: $000 | E81: EquityAmount
A83: 7 - Discounted Cash Flow Analysis | B83: ($000)
A84: Years >>> | B84: 0 | C84: 1 | D84: 2 | E84: 3 | F84: 4 | G84: 5 | H84: 6 | I84: 7 | J84: 8 | K84: 9 | L84: 10 | M84: 11 | N84: 12 | O84: 13 | P84: 14 | Q84: 15 | R84: 16 | S84: 17 | T84: 18 | U84: 19 | V84: 20
A85: A - Benefits
A87: Carbon Credit Revenues | D87: =IF(C$84<=$B$18,$B58,0) ->  | E87: =IF(D$84<=$B$18,D87*(1+default8/100),0) ->  | N87: 0 | O87: 0 | P87: 0 | Q87: 0 | R87: 0 | S87: 0 | T87: 0 | U87: 0 | V87: 0 | W87: 0
A88: Total Benefits | C88: =SUM(C86:C87) -> 0 | N88: 0 | O88: 0 | P88: 0 | Q88: 0 | R88: 0 | S88: 0 | T88: 0 | U88: 0 | V88: 0
A89: B - Costs
A90: Oxidizer and supplemental CMM Annual Costs | C90: =IF(C$84<=$B$18,-B70,0) ->  | D90: =IF(D$84<=$B$18,C90*(1+$B$37),0) ->  | M90: 0 | N90: 0 | O90: 0 | P90: 0 | Q90: 0 | R90: 0 | S90: 0 | T90: 0 | U90: 0 | V90: 0
A91: C - Cash Flow from Operations | C91: =SUM(C88:C90) ->  | N91: 0 | O91: 0 | P91: 0 | Q91: 0 | R91: 0 | S91: 0 | T91: 0 | U91: 0 | V91: 0
A93: D - Debt Service | C93: =IF(OR(C$84>$B$40,C$84>$B$18),0, PMT($B$41, $B$40, $B$80)) -> 0 | D93: 0 | E93: 0 | F93: 0 | G93: 0 | H93: 0 | I93: 0 | J93: 0 | K93: 0 | L93: 0 | M93: 0 | N93: 0 | O93: 0 | P93: 0 | Q93: 0 | R93: 0 | S93: 0 | T93: 0 | U93: 0 | V93: 0
A94: E - Net Cash Flow | B94: =-B81 -> 0 | C94: =SUM(C91:C93) ->  | D94: =SUM(D91:D93) ->  | N94: 0 | O94: 0 | P94: 0 | Q94: 0 | R94: 0 | S94: 0 | T94: 0 | U94: 0 | V94: 0
A96: 8 - Financial Measurements: IRR, NPV, Payback
A97: Internal Rate of Return - IRR | C97: =IF(ISERR(IRR($B94:V94)),0,IRR($B94:V94)) -> 0
A98: Net Present Value | C98: =NPV(B38,C94:V94)+supvamMinusEquityAmount -> 
A99: Payback Period | C99: =SUM(C101:V101) -> 
B100: =IF(B$84<=$B$18,SUM($B94:B94),0) -> 0 | C100: =IF(C$84<=$B$18,SUM($B94:C94),0) ->  | D100: =IF(D$84<=$B$18,SUM($B94:D94),0) ->  | E100: =IF(E$84<=$B$18,SUM($B94:E94),0) ->  | F100: =IF(F$84<=$B$18,SUM($B94:F94),0) ->  | G100: =IF(G$84<=$B$18,SUM($B94:G94),0) ->  | H100: =IF(H$84<=$B$18,SUM($B94:H94),0) ->  | I100: =IF(I$84<=$B$18,SUM($B94:I94),0) ->  | J100: =IF(J$84<=$B$18,SUM($B94:J94),0) ->  | K100: =IF(K$84<=$B$18,SUM($B94:K94),0) ->  | L100: =IF(L$84<=$B$18,SUM($B94:L94),0) ->  | M100: =IF(M$84<=$B$18,SUM($B94:M94),0) -> 0 | N100: =IF(N$84<=$B$18,SUM($B94:N94),0) -> 0 | O100: =IF(O$84<=$B$18,SUM($B94:O94),0) -> 0 | P100: =IF(P$84<=$B$18,SUM($B94:P94),0) -> 0 | Q100: =IF(Q$84<=$B$18,SUM($B94:Q94),0) -> 0 | R100: =IF(R$84<=$B$18,SUM($B94:R94),0) -> 0 | S100: =IF(S$84<=$B$18,SUM($B94:S94),0) -> 0 | T100: =IF(T$84<=$B$18,SUM($B94:T94),0) -> 0 | U100: =IF(U$84<=$B$18,SUM($B94:U94),0) -> 0 | V100: =IF(V$84<=$B$18,SUM($B94:V94),0) -> 0
C101: =IF(AND(C100>0,B100<0),C84+(1-C100/C94),0) ->  | D101: =IF(AND(D100>0,C100<0),D84+(1-D100/D94),0) ->  | N101: 0 | O101: 0 | P101: 0 | Q101: 0 | R101: 0 | S101: 0 | T101: 0 | U101: 0 | V101: 0

Sheet StandaloneVAM (hidden)
A1: 1 - INPUT PARAMETERS | B1: Values | C1: units | D1: Comment | E1: Name | F1: Default | G1: Range
A18: =lblUser16 -> What is the planned project operational lifetime? | B18: =user16 -> 10 | C18: years | E18: projectlifetime
A22: What percent methane is in the ventilation air? | B22: =gas9zz/100 -> 0
A23: What do you expect the recoverable ventilation air flow to be? | B23: =gas10zz -> 0 | C23: mcf/m
A24: How many hours per year will the VAM system operate? | B24: =default33 -> 0 | C24: hours/yr
A25: What is the installed capital cost of VAM oxidizer system? | B25: =user23 -> 0 | C25: $/cfm
A26: What is the annual O&M cost of the VAM oxidizer system? | B26: =user24 -> 0 | C26: $/cfm-yr
A27: What is the frequency VAM system will be relocated? | B27: =user25 -> 0 | C27: years
A28: What is the VAM oxidation system relocation cost? | B28: =user26 -> 0 | C28: $/cfm
A29: What is the electrical load of the oxidizer blowers? | B29: =user27 -> 0 | C29: kWh/mcf
A33: CMM fuel value LHV | B33: 910 | C33: Btu/cf | D33: constant
A34: Weight of methane, tonnes | B34: 0.01926 | C34: tonnes/mcf | D34: constant
A35: =lblUser8 -> What is the carbon credit unit sale price? | B35: =user8 -> 2 | C35: $/tonne CO2E | E35: CER_UnitValue
A36: GWP ratio: methane to CO2 | B36: =default20 -> 25 | C36: ratio | D36: constant
A37: =lblDefault21 -> What is the inflation rate? | B37: =default21/100 -> 0.025 | E37: InflationRate
A38: =lblDefault26 -> What is the real discount rate? | B38: =default26/100 -> 0.12 | E38: RealDiscountRate
A39: =lblUser12 -> What is the developer's equity share in the project? | B39: =user12/100 -> 1 | E39: EquityPercent
A40: =lblUser15 -> What is the loan term? | B40: =user15 -> 5 | C40: yr | E40: loanTerm
A41: =lblUser5 -> What interest rate is charged for the loan? | B41: =user5/100 -> 0 | E41: InterestRate
A42: Cap Cost Factors
A43: =lblDefault7 -> What is the contingency factor? | B43: =default7/100 -> 0.05
A44: What is the cost of electric power used by the project? | B44: =user2 -> 0 | C44: $/MWh
A45: =lblDefault14 -> What are the "soft" costs for the project? | B45: =default14/100 -> 0.05
A46: Annual Cost Factors
A47: =lblDefault11 -> What are the royalty and severance taxes? | B47: =default11/100 -> 0
A48: =lblDefault15 -> What is the validation, verification and transaction cost to monetize carbon credits? | B48: =default15 -> 0.5 | C48: $/tCO2e
A49: 2 - Feasibility Test
A51: CMM Available (always 0 for Standalone VAM) | B51: 0
A53: 3 - Calculate Annual Benefits:
A54: Carbon credits earned per year | B54: =+B23*60*B24*B22*B34*(B36-2.75)*0.95-(B23*B24*B29*60*default9/1000) -> 0 | C54: tonnes CO2e/y | E54: CERsEarnedPerYear
A55: Carbon credit revenue per year | B55: =B54*B35/1000 -> 0 | C55: $000/y
A57: 4 - Calculate New Annual Costs:
A58: O&M cost | B58: =+B23*B26*1000/1000 -> 0 | C58: $000/y
A59: Electricity cost | B59: =B23*60*B24*B29*B44/1000/1000 -> 0 | C59: $000/y
A60: Relocation cost | B60: =B28*B23*1000/B27/1000 ->  | C60: $000/y
A61: Royalty and severance taxes | B61: =B23*60*B24*B22*3*B47/1000 -> 0 | D61: 3 = $/mcf change to user input
A62: Carbon credit monetization cost/yr | B62: =B48*savamCERsEarnedPerYear/1000 -> 0 | C62: $000/y
A63: Total annual cost | B63: =SUM(B58:B62) ->  | C63: $000/y | E63: TotalAnnualCost
A66: 5 - Calculate Project Capital Costs
A67: Installed Capital Cost | B67: =B23*B25*1000/1000 -> 0 | C67: $000
A68: Subtotal | B68: =B67 -> 0 | C68: $000
A69: Total cap cost with factors | B69: =(B68*(1+B43))*(1+B45) -> 0 | C69: $000 | E69: TotalCapCost
A74: 6 - Calculate Loan and Equity
A75: Loan amount | B75: =B69*(1-B39) -> 0 | C75: $000 | E75: LoanAmount
A76: Equity amount | B76: =B69*B39 -> 0 | C76: $000 | E76: EquityAmount
A78: 7 - Discounted Cash Flow Analysis | B78: ($000)
A79: Years >>> | B79: 0 | C79: 1 | D79: 2 | E79: 3 | F79: 4 | G79: 5 | H79: 6 | I79: 7 | J79: 8 | K79: 9 | L79: 10 | M79: 11 | N79: 12 | O79: 13 | P79: 14 | Q79: 15 | R79: 16 | S79: 17 | T79: 18 | U79: 19 | V79: 20
A80: A - Benefits
A82: Carbon Credit Revenues | D82: =IF(C$79<=$B$18,$B55,0) -> 0 | E82: =IF(D$79<=$B$18,D82*(1+default8/100),0) -> 0 | F82: 0 | G82: 0 | H82: 0 | I82: 0 | J82: 0 | K82: 0 | L82: 0 | M82: 0 | N82: 0 | O82: 0 | P82: 0 | Q82: 0 | R82: 0 | S82: 0 | T82: 0 | U82: 0 | V82: 0 | W82: 0
A83: Total Benefits | C83: =SUM(C81:C82) -> 0 | D83: 0 | E83: 0 | F83: 0 | G83: 0 | H83: 0 | I83: 0 | J83: 0 | K83: 0 | L83: 0 | M83: 0 | N83: 0 | O83: 0 | P83: 0 | Q83: 0 | R83: 0 | S83: 0 | T83: 0 | U83: 0 | V83: 0
A84: B - Costs
A85: Annual Costs | C85: =IF(C$79<=$B$18,-B63,0) ->  | D85: =IF(D$79<=$B$18,C85*(1+$B$37),0) ->  | M85: 0 | N85: 0 | O85: 0 | P85: 0 | Q85: 0 | R85: 0 | S85: 0 | T85: 0 | U85: 0 | V85: 0
A86: C - Cash Flow from Operations | C86: =SUM(C83:C85) ->  | M86: 0 | N86: 0 | O86: 0 | P86: 0 | Q86: 0 | R86: 0 | S86: 0 | T86: 0 | U86: 0 | V86: 0
A88: D - Debt Service | C88: =IF(OR(C$79>$B$40,C$79>$B$18),0, PMT($B$41, $B$40, $B$75)) -> 0 | D88: 0 | E88: 0 | F88: 0 | G88: 0 | H88: 0 | I88: 0 | J88: 0 | K88: 0 | L88: 0 | M88: 0 | N88: 0 | O88: 0 | P88: 0 | Q88: 0 | R88: 0 | S88: 0 | T88: 0 | U88: 0 | V88: 0
A89: E - Net Cash Flow | B89: =-B76 -> 0 | C89: =SUM(C86:C88) ->  | D89: =SUM(D86:D88) ->  | M89: 0 | N89: 0 | O89: 0 | P89: 0 | Q89: 0 | R89: 0 | S89: 0 | T89: 0 | U89: 0 | V89: 0
A91: 8 - Financial Measurements: IRR, NPV, Payback
A92: Internal Rate of Return - IRR | C92: =IF(ISERR(IRR($B89:V89)),0,IRR($B89:V89)) -> 0
A93: Net Present Value | C93: =NPV(B38,C89:V89)+savamMinusEquityAmount -> 
A94: Payback Period | C94: =SUM(C96:V96) -> 
B95: =IF(B$79<=$B$18,SUM($B89:B89),0) -> 0 | C95: =IF(C$79<=$B$18,SUM($B89:C89),0) ->  | D95: =IF(D$79<=$B$18,SUM($B89:D89),0) ->  | E95: =IF(E$79<=$B$18,SUM($B89:E89),0) ->  | F95: =IF(F$79<=$B$18,SUM($B89:F89),0) ->  | G95: =IF(G$79<=$B$18,SUM($B89:G89),0) ->  | H95: =IF(H$79<=$B$18,SUM($B89:H89),0) ->  | I95: =IF(I$79<=$B$18,SUM($B89:I89),0) ->  | J95: =IF(J$79<=$B$18,SUM($B89:J89),0) ->  | K95: =IF(K$79<=$B$18,SUM($B89:K89),0) ->  | L95: =IF(L$79<=$B$18,SUM($B89:L89),0) ->  | M95: =IF(M$79<=$B$18,SUM($B89:M89),0) -> 0 | N95: =IF(N$79<=$B$18,SUM($B89:N89),0) -> 0 | O95: =IF(O$79<=$B$18,SUM($B89:O89),0) -> 0 | P95: =IF(P$79<=$B$18,SUM($B89:P89),0) -> 0 | Q95: =IF(Q$79<=$B$18,SUM($B89:Q89),0) -> 0 | R95: =IF(R$79<=$B$18,SUM($B89:R89),0) -> 0 | S95: =IF(S$79<=$B$18,SUM($B89:S89),0) -> 0 | T95: =IF(T$79<=$B$18,SUM($B89:T89),0) -> 0 | U95: =IF(U$79<=$B$18,SUM($B89:U89),0) -> 0 | V95: =IF(V$79<=$B$18,SUM($B89:V89),0) -> 0
C96: =IF(AND(C95>0,B95<0),C79+(1-C95/C89),0) ->  | D96: =IF(AND(D95>0,C95<0),D79+(1-D95/D89),0) ->  | N96: 0 | O96: 0 | P96: 0 | Q96: 0 | R96: 0 | S96: 0 | T96: 0 | U96: 0 | V96: 0

Sheet MineBoiler (hidden)
A1: 1 - INPUT PARAMETERS | B1: Values | C1: units | D1: Comment | E1: Name | F1: Default | G1: Range
A2: =lblDrain1 -> What is the cost of well-head blowers? | B2: =drainage1 -> 0 | C2: $/HP
A3: =lblDrain2 -> What is the cost of satellite compressors? | B3: =drainage2 -> 1000 | C3: $/HP
A4: =lblDrain3 -> What is the distance from the drainage area to the onsite project? | B4: =drainage3 -> 21000 | C4: ft
A5: =lblDrain4 -> What is the cost of installing header pipe from the drainage area? | B5: =drainage4 -> 40 | C5: $/ft
A6: =lblDrain5 -> What are the compressor and blower efficiencies? | B6: =drainage5 -> 0.035 | C6: HP/mcfd
A7: =lblDrain6 -> What is the spacing between gob drainage wells? | B7: =drainage6 -> 1000 | C7: ft
A8: =lblDrain7 -> What is the mining rate? | B8: =drainage7 -> 12000 | C8: ft/yr
A9: =lblDrain7alt -> How many drainage wells are being utilized? | B9: =drainage7alt -> 0 | C9: wells
A10: What is the drainage gas source? | B10: =inputDrainageSource -> GW
A11: =lblDrain8 -> What is the mine depth? | B11: =drainage8 -> 0 | C11: ft/well
A12: =lblDrain9 -> What is the drilling cost? | B12: =drainage9 -> 0 | C12: $/ft
A13: =lblUser18 -> What percent of CMM is consumed by prime-mover use? | B13: =user18/100 -> 0.07
A14: =lblGas1 -> What do you expect the CMM drained per day to be? | B14: =gas1zz -> 1250 | C14: mcf/d | E14: boilerCmmDrained
A15: CMM drained per hour | B15: =B14/24 -> 52.08333333 | C15: mcf/h
A16: =lblPctMethane -> Percent methane in drainage gas | B16: =inputPctMethane/100 -> 0.9 | D16: Use 40% for Boiler Feasibility Test
A17: Actual gas flow | B17: =IF(B16<>0,B14/B16,0) -> 1388.888889 | C17: mcf/d
A18: =lblUser16 -> What is the planned project operational lifetime? | B18: =user16 -> 10 | C18: years | E18: boilerProjectLifetime
A19: =lblGas6 -> What is the fraction of CMM available after losses? | B19: =gas6zz/100 -> 0.95
A20: Average fuel available | B20: =B15*(B19-B13) -> 45.83333333 | C20: mcf/h
A21: Fuel value | B21: =B20*B33/1000 -> 41.70833333 | C21: mmBtu/h
A22: =lblGas5 -> What is the boiler capacity? | B22: =gas5zz -> 0 | C22: mmBtu/h | D22: Input via Gas Availability Page
A23: =lblDefault3 -> How many hours per year will the mine boiler operate? | B23: =default3 -> 0 | C23: hours/yr | F23: 8000 | G23: 7500-8300
A24: =lblGas7 -> What is the average boiler load? | B24: =gas7zz -> 0 | C24: mmBtu/h | D24: Input via Gas Availability Page
A25: =lblUser11 -> What is the capital cost to convert the coal boiler to gas? | B25: =user11 -> 0 | C25: $000/(mmBtu/h) | D25: User Defined Input Page | F25: 7.5 | G25: [5-13]
A27: =lblUser10 -> What is the cost per ton of coal replaced by gas? | B27: =user10 -> 0 | C27: $/ton | D27: User Defined Input Page
A28: =lblDefault31 -> What is the avoided coal handling cost? | B28: =default31 -> 0 | C28: $/ton | D28: Default Parameter
A29: =lblDefault32 -> What is the replaced coal's fuel value? | B29: =default32 -> 0 | C29: mmBtu/ton | D29: Default Parameter
A30: =lblDrain10 -> What is the fraction of this project's drainage system cost that will be included in the analysis? | B30: =drainage10/100 -> 0 | D30: added by JC 6/25
A31: Drainage and Transport sys unit cap cost | B31: =IF((B14*B19)<>0,(B3*B6)+(B4*B5*B16/(B14*B19))+(IF(B10="AM",B7*B5*B9*B16/(B14*B19),0))+ (B30*IF(inputDrainageSystem="Y",(B2*B6)+IF(B10="AM",B11*B12*B9*B16/(B14*B19),0),0)),0) -> 671.6315789 | C31: $/mcfd | D31: "X", tweaked by JC 6/25
A32: Drainage and Transport O&M cost | B32: =IF(AND(inputDrainageSource="GW",(B14*B19)<>0,B23<>0),((B8*B5)+IF(AND(inputDrainageSystem="Y",B7<>0),B8*B11*B12*B30/B7,0))*B16*24/(B14*B19)/B23,0) -> 0 | C32: $/mcf | D32: "Y", tweaked by JC 6/25
A33: CMM fuel value LHV | B33: 910 | C33: Btu/cf | D33: constant
A34: Weight of methane, tonnes | B34: 0.01926 | C34: tonnes/mcf | D34: constant
A35: =lblUser8 -> What is the carbon credit unit sale price? | B35: =user8 -> 2 | C35: $/tonne CO2E | E35: CER_UnitValue
A36: GWP ratio: methane to CO2 | B36: =default20 -> 25 | C36: ratio | D36: constant
A37: =lblDefault21 -> What is the inflation rate? | B37: =default21/100 -> 0.025 | E37: InflationRate
A38: =lblDefault26 -> What is the real discount rate? | B38: =default26/100 -> 0.12 | E38: RealDiscountRate
A39: =lblUser12 -> What is the developer's equity share in the project? | B39: =user12/100 -> 1 | E39: EquityPercent
A40: =lblUser15 -> What is the loan term? | B40: =user15 -> 5 | C40: yr | E40: loanTerm
A41: =lblUser5 -> What interest rate is charged for the loan? | B41: =user5/100 -> 0 | E41: InterestRate
A42: Cap Cost Factors
A43: =lblDefault7 -> What is the contingency factor? | B43: =default7/100 -> 0.05
A44: =lblDefault14 -> What are the "soft" costs for the project? | B44: =default14/100 -> 0.05
A45: Annual Cost Factors
A46: =lblDefault11 -> What are the royalty and severance taxes? | B46: =default11/100 -> 0
A47: =lblDefault15 -> What is the validation, verification and transaction cost to monetize carbon credits? | B47: =default15 -> 0.5 | C47: $/tCO2e
A49: 2 - Feasibility Test
A50: CMM heat value available/hour | B50: =B21 -> 41.70833333 | C50: mmBtu/h | D50: this is downstream availability | E50: heatAvailable
A51: Average Mine Boiler Heat Load | B51: =B24 -> 0 | C51: mmBtu/h | E51: heatNeeded
A52: CMM volume needed/hour | B52: =IF(OR(B50<B51,inputScenFlare="OF",inputScenFlare="EF"),B50*1000/B33/(1-B13),B51*1000/B33/(1-B13)) -> 0 | C52: mcf/h | D52: incl prime mover, exclud fugitive
A53: CMM available for other uses | B53: =IF(OR(B51>B50, inputScenFlare="OF",inputScenFlare="EF",B19=0),0, B14-(B52*24/B19)) -> 1250 | C53: mcfd | D53: available at drainage wells | E53: boilerCmmAvailable
A55: 3 - Calculate Annual Benefits
A56: Tons of coal replaced per hour | B56: =IF(B29<>0,IF(B50<B51,B50/B29,B51/B29),0) -> 0 | C56: ton/h
A57: Cost savings per hour - coal | B57: =B56*(B27+B28) -> 0 | C57: $/h
A58: Cost savings per year - coal | B58: =B57*B23/1000 -> 0 | C58: $000/y
A59: CMM volume needed/hour | B59: =B52 -> 0 | C59: mcf/h
A60: Tonnes CH4 needed/hour | B60: =B59*B34 -> 0 | C60: t/h
A61: Carbon credits earned per hour | B61: =B60*(B36+2) -> 0 | C61: t/h
A62: Carbon credits earned per year | B62: =B61*B23 -> 0 | C62: t/y | E62: CERsEarnedPerYear
A63: Carbon credit revenue per year | B63: =B62*B35/1000 -> 0 | C63: $000/y
A65: 4 - Calculate New Annual Costs
A66: CMM needed per hour | B66: =B52 -> 0 | C66: mcf/h
A67: Drain & transport O&M cost/h | B67: =IF(B16<>0,(B66*B32)/B16,0) -> 0 | C67: $/h
A68: Drain & transport O&M cost/yr | B68: =B67*B23/1000 -> 0 | C68: $000/y
A69: Back-up Flare O&M cost/yr | B69: =IF(inputScenFlare="OF",user22,IF(inputScenFlare="EF",user20,0)) -> 0
A70: Royalty and severance taxes cost/yr | B70: =boilerCmmDrained*365*B46*3/1000 -> 0 | D70: 3 = $/mcf change to user input
A71: Carbon credit monetization cost/yr | B71: =B47*boilerCERsEarnedPerYear/1000 -> 0
A72: Total annual cost | B72: =SUM(B68:B71) -> 0 | C72: $000/y | E72: TotalAnnualCost
A74: 5 - Calculate Project Capital Costs
A75: CMM needed per hour | B75: =B52 -> 0 | C75: mcf/h
A76: CMM transport system | B76: =IF(B16<>0,B31*B75*24/B16/1000,0) -> 0 | C76: $000
A77: Cost to Convert Convert Boiler to Burn CMM | B77: =IF(B50<B51, B50*B25,B22*B25) -> 0 | C77: $000
A78: Back-up Flare capital cost | B78: =IF(inputScenFlare="OF",B20*24*user21,IF(inputScenFlare="EF",B20*24*user19,0)) -> 0
A79: Subtotal | B79: =SUM(B76:B78) -> 0 | C79: $000
A80: Total cap cost with factors | B80: =(B79*(1+B44))*(1+B43) -> 0 | C80: $000 | E80: TotalCapCost
A82: 6 - Calculate Loan and Equity
A83: Loan amount | B83: =B80*(1-B39) -> 0 | C83: $000 | E83: LoanAmount
A84: Equity amount | B84: =B80*B39 -> 0 | C84: $000 | E84: EquityAmount
A86: 7 - Discounted Cash Flow Analysis | B86: ($000)
A87: Years >>> | B87: 0 | C87: 1 | D87: 2 | E87: 3 | F87: 4 | G87: 5 | H87: 6 | I87: 7 | J87: 8 | K87: 9 | L87: 10 | M87: 11 | N87: 12 | O87: 13 | P87: 14 | Q87: 15 | R87: 16 | S87: 17 | T87: 18 | U87: 19 | V87: 20
A88: A - Benefits
A89: Coal savings | C89: =IF(C$87<=$B$18,B58,0) -> 0 | D89: =IF(D$87<=$B$18,C89*(1+$B$37),0) -> 0 | E89: 0 | F89: 0 | G89: 0 | H89: 0 | I89: 0 | J89: 0 | K89: 0 | L89: 0 | M89: 0 | N89: 0 | O89: 0 | P89: 0 | Q89: 0 | R89: 0 | S89: 0 | T89: 0 | U89: 0 | V89: 0
A90: Carbon Credit Revenues | D90: =IF(C$87<=$B$18,$B63,0) -> 0 | E90: =IF(D$87<=$B$18,D90*(1+default8/100),0) -> 0 | F90: 0 | G90: 0 | H90: 0 | I90: 0 | J90: 0 | K90: 0 | L90: 0 | M90: 0 | N90: 0 | O90: 0 | P90: 0 | Q90: 0 | R90: 0 | S90: 0 | T90: 0 | U90: 0 | V90: 0 | W90: 0
A91: Total Benefits | C91: =SUM(C89:C90) -> 0 | D91: 0 | E91: 0 | F91: 0 | G91: 0 | H91: 0 | I91: 0 | J91: 0 | K91: 0 | L91: 0 | M91: 0 | N91: 0 | O91: 0 | P91: 0 | Q91: 0 | R91: 0 | S91: 0 | T91: 0 | U91: 0 | V91: 0
A92: B - Costs
A93: CMM transport cost + drain share | C93: =IF(C$87<=$B$18,-B72,0) -> 0 | D93: =IF(D$87<=$B$18,C93*(1+$B$37),0) -> 0 | E93: 0 | F93: 0 | G93: 0 | H93: 0 | I93: 0 | J93: 0 | K93: 0 | L93: 0 | M93: 0 | N93: 0 | O93: 0 | P93: 0 | Q93: 0 | R93: 0 | S93: 0 | T93: 0 | U93: 0 | V93: 0
A94: C - Cash Flow from Operations | C94: =SUM(C91:C93) -> 0 | D94: 0 | E94: 0 | F94: 0 | G94: 0 | H94: 0 | I94: 0 | J94: 0 | K94: 0 | L94: 0 | M94: 0 | N94: 0 | O94: 0 | P94: 0 | Q94: 0 | R94: 0 | S94: 0 | T94: 0 | U94: 0 | V94: 0
A96: D - Debt Service | C96: =IF(OR(C$87>$B$40,C$87>$B$18),0, PMT($B$41, $B$40, $B$83)) -> 0 | D96: 0 | E96: 0 | F96: 0 | G96: 0 | H96: 0 | I96: 0 | J96: 0 | K96: 0 | L96: 0 | M96: 0 | N96: 0 | O96: 0 | P96: 0 | Q96: 0 | R96: 0 | S96: 0 | T96: 0 | U96: 0 | V96: 0
A97: E - Net Cash Flow | B97: =-B84 -> 0 | C97: =SUM(C94:C96) -> 0 | D97: =SUM(D94:D96) -> 0 | E97: 0 | F97: 0 | G97: 0 | H97: 0 | I97: 0 | J97: 0 | K97: 0 | L97: 0 | M97: 0 | N97: 0 | O97: 0 | P97: 0 | Q97: 0 | R97: 0 | S97: 0 | T97: 0 | U97: 0 | V97: 0
A99: 8 - Financial Measurements: IRR, NPV, Payback
A100: Internal Rate of Return - IRR | C100: =IF(ISERR(IRR($B97:V97)),0,IRR($B97:V97)) -> 0
A101: Net Present Value | C101: =NPV(B38,C97:V97)+boilerMinusEquityAmount -> 0
A102: Payback Period | C102: =SUM(C104:V104) -> 0
B103: =IF(B$87<=$B$18,SUM($B97:B97),0) -> 0 | C103: =IF(C$87<=$B$18,SUM($B97:C97),0) -> 0 | D103: =IF(D$87<=$B$18,SUM($B97:D97),0) -> 0 | E103: =IF(E$87<=$B$18,SUM($B97:E97),0) -> 0 | F103: =IF(F$87<=$B$18,SUM($B97:F97),0) -> 0 | G103: =IF(G$87<=$B$18,SUM($B97:G97),0) -> 0 | H103: =IF(H$87<=$B$18,SUM($B97:H97),0) -> 0 | I103: =IF(I$87<=$B$18,SUM($B97:I97),0) -> 0 | J103: =IF(J$87<=$B$18,SUM($B97:J97),0) -> 0 | K103: =IF(K$87<=$B$18,SUM($B97:K97),0) -> 0 | L103: =IF(L$87<=$B$18,SUM($B97:L97),0) -> 0 | M103: =IF(M$87<=$B$18,SUM($B97:M97),0) -> 0 | N103: =IF(N$87<=$B$18,SUM($B97:N97),0) -> 0 | O103: =IF(O$87<=$B$18,SUM($B97:O97),0) -> 0 | P103: =IF(P$87<=$B$18,SUM($B97:P97),0) -> 0 | Q103: =IF(Q$87<=$B$18,SUM($B97:Q97),0) -> 0 | R103: =IF(R$87<=$B$18,SUM($B97:R97),0) -> 0 | S103: =IF(S$87<=$B$18,SUM($B97:S97),0) -> 0 | T103: =IF(T$87<=$B$18,SUM($B97:T97),0) -> 0 | U103: =IF(U$87<=$B$18,SUM($B97:U97),0) -> 0 | V103: =IF(V$87<=$B$18,SUM($B97:V97),0) -> 0
C104: =IF(AND(C103>0,B103<0),C87+(1-C103/C97),0) -> 0 | D104: =IF(AND(D103>0,C103<0),D87+(1-D103/D97),0) -> 0 | E104: 0 | F104: 0 | G104: 0 | H104: 0 | I104: 0 | J104: 0 | K104: 0 | L104: 0 | M104: 0 | N104: 0 | O104: 0 | P104: 0 | Q104: 0 | R104: 0 | S104: 0 | T104: 0 | U104: 0 | V104: 0

Sheet RecipEngines (hidden)
A1: 1 - INPUT PARAMETERS | B1: Values | C1: units | D1: Comment | E1: Name | F1: Default | G1: Range
A2: =lblDrain1 -> What is the cost of well-head blowers? | B2: =drainage1 -> 0 | C2: $/HP
A3: =lblDrain2 -> What is the cost of satellite compressors? | B3: =drainage2 -> 1000 | C3: $/HP
A4: =lblDrain3 -> What is the distance from the drainage area to the onsite project? | B4: =drainage3 -> 21000 | C4: ft
A5: =lblDrain4 -> What is the cost of installing header pipe from the drainage area? | B5: =drainage4 -> 40 | C5: $/ft
A6: =lblDrain5 -> What are the compressor and blower efficiencies? | B6: =drainage5 -> 0.035 | C6: HP/mcfd
A7: =lblDrain6 -> What is the spacing between gob drainage wells? | B7: =drainage6 -> 1000 | C7: ft
A8: =lblDrain7 -> What is the mining rate? | B8: =drainage7 -> 12000 | C8: ft/yr
A9: =lblDrain7alt -> How many drainage wells are being utilized? | B9: =drainage7alt -> 0 | C9: wells
A10: What is the drainage gas source? | B10: =inputDrainageSource -> GW
A11: =lblDrain8 -> What is the mine depth? | B11: =drainage8 -> 0 | C11: ft/well
A12: =lblDrain9 -> What is the drilling cost? | B12: =drainage9 -> 0 | C12: $/ft
A13: =lblUser18 -> What percent of CMM is consumed by prime-mover use? | B13: =user18/100 -> 0.07 | D13: What is this exactly?
A14: =lblGas1 -> What do you expect the CMM drained per day to be? | B14: =gas1zz -> 1250 | C14: mcf/d
A15: CMM drained per hour | B15: =B14/24 -> 52.08333333 | C15: mcf/h
A16: =lblPctMethane -> Percent methane in drainage gas | B16: =inputPctMethane/100 -> 0.9 | D16: Use 25% for Engine Feasibility Test
A17: Actual gas flow | B17: =IF(B16<>0,B14/B16,0) -> 1388.888889 | C17: mcf/d
A18: =lblUser16 -> What is the planned project operational lifetime? | B18: =user16 -> 10 | C18: years | E18: engineProjectLifetime
A19: =lblGas6 -> What is the fraction of CMM available after losses? | B19: =gas6zz/100 -> 0.95
A20: Average fuel available | B20: =B15*(B19-B13) -> 45.83333333 | C20: mcf/h
A21: Fuel value | B21: =B20*B33/1000 -> 41.70833333 | C21: mmBtu/h
A22: =lblUser6 -> What is the overall efficiency of the engine-generator set? | B22: =user6/100 -> 0.35 | C22: Based on LHV | D22: User Defined Input Page | G22: 30% - 44%
A23: =lblDefault4 -> How many hours per year will the engine operate? | B23: =default4 -> 8000 | C23: hours/yr | D23: Default Parameter | F23: 8000 | G23: 7500-8300
A25: =lblUser3 -> Capital cost of treatment, engine-gen set, & electrical equipment? | B25: =user3 -> 1.15 | C25: $000/kW | D25: User Defined Input Page | F25: 1.3 | G25: 1.100-1.500
A26: =lblUser4 -> What is the O&M cost of the reciprocating engine? | B26: =user4 -> 0.02 | C26: $/kWh | D26: User Defined Input Page | F26: 0.02 | G26: 0.015 - 0.03
A27: =lblUser1 -> For what price can CMM-based electricity be sold? | B27: =user1 -> 0.07 | C27: $/kWh | D27: User Defined Input Page | F27: 0.07 | G27: 0.04 - 0.1
A30: =lblDrain10 -> What is the fraction of this project's drainage system cost that will be included in the analysis? | B30: =drainage10/100 -> 0 | D30: added by JC 6/25
A31: Drainage and Transport sys unit cap cost | B31: =IF((B14*B19)<>0,(B3*B6)+(B4*B5*B16/(B14*B19))+(IF(B10="AM",B7*B5*B9*B16/(B14*B19),0))+ (B30*IF(inputDrainageSystem="Y",(B2*B6)+IF(B10="AM",B11*B12*B9*B16/(B14*B19),0),0)),0) -> 671.6315789 | C31: $/mcfd | D31: "X", tweaked by JC 6/25
A32: Drainage and Transport O&M cost | B32: =IF(AND(inputDrainageSource="GW",(B14*B19)<>0,B23<>0),((B8*B5)+IF(AND(inputDrainageSystem="Y",B7<>0),B8*B11*B12*B30/B7,0))*B16*24/(B14*B19)/B23,0) -> 1.091368421 | C32: $/mcf | D32: "Y", tweaked by JC 6/25
A33: CMM fuel value LHV | B33: 910 | C33: Btu/cf | D33: constant
A34: Weight of methane, tonnes | B34: 0.01926 | C34: tonnes/mcf | D34: constant
A35: =lblUser8 -> What is the carbon credit unit sale price? | B35: =user8 -> 2 | C35: $/tonne CO2E | E35: CER_UnitValue
A36: GWP ratio: methane to CO2 | B36: =default20 -> 25 | C36: ratio | D36: constant
A37: =lblDefault21 -> What is the inflation rate? | B37: =default21/100 -> 0.025 | E37: InflationRate
A38: =lblDefault26 -> What is the real discount rate? | B38: =default26/100 -> 0.12 | E38: RealDiscountRate
A39: =lblUser12 -> What is the developer's equity share in the project? | B39: =user12/100 -> 1 | E39: EquityPercent
A40: =lblUser15 -> What is the loan term? | B40: =user15 -> 5 | C40: yr | E40: loanTerm
A41: =lblUser5 -> What interest rate is charged for the loan? | B41: =user5/100 -> 0 | E41: InterestRate
A42: Cap Cost Factors
A43: =lblDefault7 -> What is the contingency factor? | B43: =default7/100 -> 0.05
A44: =lblDefault14 -> What are the "soft" costs for the project? | B44: =default14/100 -> 0.05
A45: Annual Cost Factors
A46: =lblDefault11 -> What are the royalty and severance taxes? | B46: =default11/100 -> 0
A47: =lblDefault15 -> What is the validation, verification and transaction cost to monetize carbon credits? | B47: =default15 -> 0.5 | C47: $/tCO2e
A49: 2 - Feasibility Test
A50: CMM heat value available/hour | B50: =B21 -> 41.70833333 | C50: mmBtu/h | D50: this is downstream availability
A52: CMM volume needed/hour | B52: =B50*1000/B33/(1-B13) -> 49.28315412 | C52: mcf/h | D52: incl prime mover, exclud fugitive
A53: CMM available for other uses | B53: 0 | C53: mcfd | D53: available at drainage wells | E53: cmmAvailable
A55: 3 - Calculate Annual Benefits
A56: Engine Capacity | B56: =B50*B22/3.412 -> 4.27840465 | C56: MW | D56: New Item for two Output vehicles
A57: Annual Electricity Production | B57: =B56*B23 -> 34227.2372 | C57: MWh
A58: Annual Revenue from Sale of Electricity | B58: =B27*B57 -> 2395.906604 | C58: $000 | D58: New Item for two Output vehicles
A59: CMM volume needed/hour | B59: =B52 -> 49.28315412 | C59: mcf/h
A60: Tonnes CH4 needed/hour | B60: =B59*B34 -> 0.9491935484 | C60: t/h
A61: Carbon credits earned per hour | B61: =B60*(B36-2.75) -> 21.11955645 | C61: t/h
A62: Carbon credits earned per year | B62: =B61*B23 -> 168956.4516 | C62: t/y | E62: coalCERsEarnedPerYear
A63: Carbon credit revenue per year | B63: =B62*B35/1000 -> 337.9129032 | C63: $000/y
A65: 4 - Calculate New Annual Costs
A66: Engine O&M cost | B66: =B57*B26 -> 684.544744 | C66: $000/y
A67: Drain & transport O&M cost/h | B67: =IF(B16<>0,(B52*B32)/B16,0) -> 59.762309 | C67: $/h
A68: Drain & transport O&M cost/y | B68: =B67*B23/1000 -> 478.098472 | C68: $000/y
A69: Carbon credit monetization cost/yr | B69: =B47*engineCERsEarnedPerYear/1000 -> 84.47822581 | C69: $000/y
A70: Royalty and severance taxes | B70: =B46*B14*365*3/1000 -> 0 | C70: $000/y | D70: 3 in equation = $3/mcf. Hardwired gas cost. Change to user input?
A71: Total annual cost | B71: =B68+B66+B69+B70 -> 1247.121442 | C71: $000/y | E71: coalTotalAnnualCost
A73: 5 - Calculate Project Capital Costs
A74: CMM needed per hour | B74: =B52 -> 49.28315412 | C74: mcf/h
A75: CMM transport system | B75: =IF(B16<>0,B31*B74*24/B16/1000,0) -> 882.6699365 | C75: $000
A76: Installed Cost of Engine-Generator Sets | B76: =B56*B25*1000 -> 4920.165348 | C76: $000
A77: --
A78: Subtotal | B78: =SUM(B75:B76) -> 5802.835284 | C78: $000
A79: Total cap cost with factors | B79: =(B78*(1+B44))*(1+B43) -> 6397.625901 | C79: $000 | E79: coalTotalCapCost
A81: 6 - Calculate Loan and Equity
A82: Loan amount | B82: =B79*(1-B39) -> 0 | C82: $000 | E82: LoanAmount
A83: Equity amount | B83: =B79*B39 -> 6397.625901 | C83: $000 | E83: coalEquityAmount
A85: 7 - Discounted Cash Flow Analysis | B85: ($000)
A86: Years >>> | B86: 0 | C86: 1 | D86: 2 | E86: 3 | F86: 4 | G86: 5 | H86: 6 | I86: 7 | J86: 8 | K86: 9 | L86: 10 | M86: 11 | N86: 12 | O86: 13 | P86: 14 | Q86: 15 | R86: 16 | S86: 17 | T86: 18 | U86: 19 | V86: 20
A87: A - Benefits
A88: Electricity Revenues | C88: =IF(C$86<=$B$18,B58,0) -> 2395.906604 | D88: =IF(D$86<=$B$18,C88*(1+$B$37),0) -> 2455.804269 | E88: 2517.199376 | F88: 2580.12936 | G88: 2644.632594 | H88: 2710.748409 | I88: 2778.517119 | J88: 2847.980047 | K88: 2919.179549 | L88: 2992.159037 | M88: 0 | N88: 0 | O88: 0 | P88: 0 | Q88: 0 | R88: 0 | S88: 0 | T88: 0 | U88: 0 | V88: 0
A89: Carbon Credit Revenues | D89: =IF(C$86<=$B$18,$B63,0) -> 337.9129032 | E89: =IF(D$86<=$B$18,D89*(1+default8/100),0) -> 344.6711613 | F89: 351.5645845 | G89: 358.5958762 | H89: 365.7677937 | I89: 373.0831496 | J89: 380.5448126 | K89: 388.1557088 | L89: 395.918823 | M89: 403.8371995 | N89: 0 | O89: 0 | P89: 0 | Q89: 0 | R89: 0 | S89: 0 | T89: 0 | U89: 0 | V89: 0 | W89: 0
A90: Total Benefits | C90: =SUM(C88:C89) -> 2395.906604 | D90: =SUM(D88:D89) -> 2793.717172 | E90: 2861.870537 | F90: 2931.693945 | G90: 3003.228471 | H90: 3076.516203 | I90: 3151.600269 | J90: 3228.52486 | K90: 3307.335257 | L90: 3388.07786 | M90: 403.8371995 | N90: 0 | O90: 0 | P90: 0 | Q90: 0 | R90: 0 | S90: 0 | T90: 0 | U90: 0 | V90: 0
A91: B - Costs
A92: Annual Drainage and Engine O&M Cost | C92: =IF(C$86<=$B$18,-B71,0) -> -1247.121442 | D92: =IF(D$86<=$B$18,C92*(1+$B$37),0) -> -1278.299478 | E92: -1310.256965 | F92: -1343.013389 | G92: -1376.588724 | H92: -1411.003442 | I92: -1446.278528 | J92: -1482.435491 | K92: -1519.496378 | L92: -1557.483788 | M92: 0 | N92: 0 | O92: 0 | P92: 0 | Q92: 0 | R92: 0 | S92: 0 | T92: 0 | U92: 0 | V92: 0
A93: C - Cash Flow from Operations | C93: =SUM(C90:C92) -> 1148.785162 | D93: 1515.417695 | E93: 1551.613572 | F93: 1588.680556 | G93: 1626.639747 | H93: 1665.512761 | I93: 1705.321741 | J93: 1746.089369 | K93: 1787.838879 | L93: 1830.594073 | M93: 403.8371995 | N93: 0 | O93: 0 | P93: 0 | Q93: 0 | R93: 0 | S93: 0 | T93: 0 | U93: 0 | V93: 0
A95: D - Debt Service | C95: =IF(OR(C$86>$B$40,C$86>$B$18),0, PMT($B$41, $B$40, $B$82)) -> 0 | D95: 0 | E95: 0 | F95: 0 | G95: 0 | H95: 0 | I95: 0 | J95: 0 | K95: 0 | L95: 0 | M95: 0 | N95: 0 | O95: 0 | P95: 0 | Q95: 0 | R95: 0 | S95: 0 | T95: 0 | U95: 0 | V95: 0
A96: E - Net Cash Flow | B96: =-B83 -> -6397.625901 | C96: =SUM(C93:C95) -> 1148.785162 | D96: =SUM(D93:D95) -> 1515.417695 | E96: 1551.613572 | F96: 1588.680556 | G96: 1626.639747 | H96: 1665.512761 | I96: 1705.321741 | J96: 1746.089369 | K96: 1787.838879 | L96: 1830.594073 | M96: 403.8371995 | N96: 0 | O96: 0 | P96: 0 | Q96: 0 | R96: 0 | S96: 0 | T96: 0 | U96: 0 | V96: 0
A98: 8 - Financial Measurements: IRR, NPV, Payback
A99: Internal Rate of Return - IRR | C99: =IF(ISERR(IRR($B96:V96)),0,IRR($B96:V96)) -> 0.2027891214
A100: Net Present Value | C100: =NPV(B38,C96:V96)+engineMinusEquityAmount -> 2543.825255
A101: Payback Period | C101: =SUM(C103:V103) -> 5.364634466
B102: =IF(B$86<=$B$18,SUM($B96:B96),0) -> -6397.625901 | C102: =IF(C$86<=$B$18,SUM($B96:C96),0) -> -5248.840739 | D102: =IF(D$86<=$B$18,SUM($B96:D96),0) -> -3733.423044 | E102: =IF(E$86<=$B$18,SUM($B96:E96),0) -> -2181.809472 | F102: =IF(F$86<=$B$18,SUM($B96:F96),0) -> -593.1289156 | G102: =IF(G$86<=$B$18,SUM($B96:G96),0) -> 1033.510831 | H102: =IF(H$86<=$B$18,SUM($B96:H96),0) -> 2699.023593 | I102: =IF(I$86<=$B$18,SUM($B96:I96),0) -> 4404.345334 | J102: =IF(J$86<=$B$18,SUM($B96:J96),0) -> 6150.434703 | K102: =IF(K$86<=$B$18,SUM($B96:K96),0) -> 7938.273582 | L102: =IF(L$86<=$B$18,SUM($B96:L96),0) -> 9768.867655 | M102: =IF(M$86<=$B$18,SUM($B96:M96),0) -> 0 | N102: =IF(N$86<=$B$18,SUM($B96:N96),0) -> 0 | O102: =IF(O$86<=$B$18,SUM($B96:O96),0) -> 0 | P102: =IF(P$86<=$B$18,SUM($B96:P96),0) -> 0 | Q102: =IF(Q$86<=$B$18,SUM($B96:Q96),0) -> 0 | R102: =IF(R$86<=$B$18,SUM($B96:R96),0) -> 0 | S102: =IF(S$86<=$B$18,SUM($B96:S96),0) -> 0 | T102: =IF(T$86<=$B$18,SUM($B96:T96),0) -> 0 | U102: =IF(U$86<=$B$18,SUM($B96:U96),0) -> 0 | V102: =IF(V$86<=$B$18,SUM($B96:V96),0) -> 0
C103: =IF(AND(C102>0,B102<0),C86+(1-C102/C96),0) -> 0 | D103: =IF(AND(D102>0,C102<0),D86+(1-D102/D96),0) -> 0 | E103: 0 | F103: 0 | G103: 5.364634466 | H103: 0 | I103: 0 | J103: 0 | K103: 0 | L103: 0 | M103: 0 | N103: 0 | O103: 0 | P103: 0 | Q103: 0 | R103: 0 | S103: 0 | T103: 0 | U103: 0 | V103: 0

Sheet EnclosedFlare (hidden)
A1: 1 - INPUT PARAMETERS | B1: Values | C1: units | D1: Comment | E1: Name | F1: Default | G1: Range
A2: =lblDrain1 -> What is the cost of well-head blowers? | B2: =drainage1 -> 0 | C2: $/HP
A3: =lblDrain2 -> What is the cost of satellite compressors? | B3: =drainage2 -> 1000 | C3: $/HP
A4: =lblDrain3 -> What is the distance from the drainage area to the onsite project? | B4: =drainage3 -> 21000 | C4: ft
A5: =lblDrain4 -> What is the cost of installing header pipe from the drainage area? | B5: =drainage4 -> 40 | C5: $/ft
A6: =lblDrain5 -> What are the compressor and blower efficiencies? | B6: =drainage5 -> 0.035 | C6: HP/mcfd
A7: =lblDrain6 -> What is the spacing between gob drainage wells? | B7: =drainage6 -> 1000 | C7: ft
A8: =lblDrain7 -> What is the mining rate? | B8: =drainage7 -> 12000 | C8: ft/yr
A9: =lblDrain7alt -> How many drainage wells are being utilized? | B9: =drainage7alt -> 0 | C9: wells
A10: What is the drainage gas source? | B10: =inputDrainageSource -> GW
A11: =lblDrain8 -> What is the mine depth? | B11: =drainage8 -> 0 | C11: ft/well
A12: =lblDrain9 -> What is the drilling cost? | B12: =drainage9 -> 0 | C12: $/ft
A13: =lblUser18 -> What percent of CMM is consumed by prime-mover use? | B13: =user18/100 -> 0.07
A14: =lblGas1 -> What do you expect the CMM drained per day to be? | B14: =gas1zz -> 1250 | C14: mcf/d
A15: CMM drained per hour | B15: =B14/24 -> 52.08333333 | C15: mcf/h
A16: =lblPctMethane -> Percent methane in drainage gas | B16: =inputPctMethane/100 -> 0.9 | D16: Use 30% for Flare Feasibility Test
A17: Actual gas flow | B17: =IF(B16<>0,B14/B16,0) -> 1388.888889 | C17: mcf/d
A18: =lblUser16 -> What is the planned project operational lifetime? | B18: =user16 -> 10 | C18: years | E18: cflareProjectLifetime
A19: =lblGas6 -> What is the fraction of CMM available after losses? | B19: =gas6zz/100 -> 0.95
A20: Average fuel available | B20: =B15*(B19-B13) -> 45.83333333 | C20: mcf/h
A21: Fuel value | B21: =B20*B33/1000 -> 41.70833333 | C21: mmBtu/h
A23: =lblDefault2 -> How many hours per year will the flare operate? | B23: =default2 -> 0 | C23: hours/yr | F23: 8000 | G23: 7500-8300
A25: =lblUser19 -> What is the capital cost of the enclosed flare? | B25: =user19 -> 0 | C25: $000/mcfd | D25: User Defined Input Page | F25: 0.28 | G25: 0.12-0.45
A26: =lblUser20 -> What is the O&M cost of the enclosed flare? | B26: =user20 -> 0 | C26: $000/yr | D26: User Defined Input Page | F26: 15 | G26: 10-20
A30: =lblDrain10 -> What is the fraction of this project's drainage system cost that will be included in the analysis? | B30: =drainage10/100 -> 0 | D30: added by JC 6/25
A31: Drainage and Transport sys unit cap cost | B31: =IF((B14*B19)<>0,(B3*B6)+(B4*B5*B16/(B14*B19))+(IF(B10="AM",B7*B5*B9*B16/(B14*B19),0))+ (B30*IF(inputDrainageSystem="Y",(B2*B6)+IF(B10="AM",B11*B12*B9*B16/(B14*B19),0),0)),0) -> 671.6315789 | C31: $/mcfd | D31: "X", tweaked by JC 6/25
A32: Drainage and Transport O&M cost | B32: =IF(AND(inputDrainageSource="GW",(B14*B19)<>0,B23<>0),((B8*B5)+IF(AND(inputDrainageSystem="Y",B7<>0),B8*B11*B12*B30/B7,0))*B16*24/(B14*B19)/B23,0) -> 0 | C32: $/mcf | D32: "Y", tweaked by JC 6/25
A33: CMM fuel value LHV | B33: 910 | C33: Btu/cf | D33: constant
A34: Weight of methane, tonnes | B34: 0.01926 | C34: tonnes/mcf | D34: constant
A35: =lblUser8 -> What is the carbon credit unit sale price? | B35: =user8 -> 2 | C35: $/tonne CO2E | E35: CER_UnitValue
A36: GWP ratio: methane to CO2 | B36: =default20 -> 25 | C36: ratio | D36: constant
A37: =lblDefault21 -> What is the inflation rate? | B37: =default21/100 -> 0.025 | E37: InflationRate
A38: =lblDefault26 -> What is the real discount rate? | B38: =default26/100 -> 0.12 | E38: RealDiscountRate
A39: =lblUser12 -> What is the developer's equity share in the project? | B39: =user12/100 -> 1 | E39: EquityPercent
A40: =lblUser15 -> What is the loan term? | B40: =user15 -> 5 | C40: yr | E40: loanTerm
A41: =lblUser5 -> What interest rate is charged for the loan? | B41: =user5/100 -> 0 | E41: InterestRate
A42: Cap Cost Factors
A43: =lblDefault7 -> What is the contingency factor? | B43: =default7/100 -> 0.05
A44: =lblDefault14 -> What are the "soft" costs for the project? | B44: =default14/100 -> 0.05
A45: Annual Cost Factors
A46: =lblDefault11 -> What are the royalty and severance taxes? | B46: =default11/100 -> 0
A47: =lblDefault15 -> What is the validation, verification and transaction cost to monetize carbon credits? | B47: =default15 -> 0.5 | C47: $/tCO2e
A49: 2 - Feasibility Test
A50: CMM heat value available/hour | B50: =B21 -> 41.70833333 | C50: mmBtu/h | D50: this is downstream availability
A52: CMM volume needed/hour | B52: =B50*1000/B33/(1-B13) -> 49.28315412 | C52: mcf/h | D52: incl prime mover, exclud fugitive
A53: CMM available for other uses | B53: 0 | C53: mcfd | D53: available at drainage wells | E53: cmmAvailable
A55: 3 - Calculate Annual Benefits
A59: CMM volume needed/hour | B59: =B52 -> 49.28315412 | C59: mcf/h
A60: Tonnes CH4 needed/hour | B60: =B59*B34 -> 0.9491935484 | C60: t/h
A61: Carbon credits earned per hour | B61: =B60*(B36-2.75) -> 21.11955645 | C61: t/h
A62: Carbon credits earned per year | B62: =B61*B23 -> 0 | C62: t/y | E62: coalCERsEarnedPerYear
A63: Carbon credit revenue per year | B63: =B62*B35/1000 -> 0 | C63: $000/y
A65: 4 - Calculate New Annual Costs
A66: Flare O&M cost | B66: =B26 -> 0 | C66: $000/y
A67: Drain & transport O&M cost/h | B67: =IF(B16<>0,(B52*B32)/B16,0) -> 0 | C67: $/h
A68: Drain & transport O&M cost/y | B68: =B67*B23/1000 -> 0 | C68: $000/y
A69: Carbon credit monetization cost/yr | B69: =B47*cflareCERsEarnedPerYear/1000 -> 0 | C69: $000/y
A70: Royalty and Severance Taxes | B70: =B14*365*B46*3/1000 -> 0 | C70: $000/y | D70: 3=Nat gas price $/mcf
A71: Total annual cost | B71: =B68+B66+B69+B70 -> 0 | C71: $000/y | E71: coalTotalAnnualCost
A73: 5 - Calculate Project Capital Costs
A74: CMM needed per hour | B74: =B52 -> 49.28315412 | C74: mcf/h
A75: CMM transport system | B75: =IF(B16<>0,B31*B74*24/B16/1000,0) -> 882.6699365 | C75: $000
A76: Installed Cost Flare | B76: =B20*B25*24 -> 0 | C76: $000
A77: --
A78: Subtotal | B78: =SUM(B75:B76) -> 882.6699365 | C78: $000
A79: Total cap cost with factors | B79: =(B78*(1+B44))*(1+B43) -> 973.143605 | C79: $000 | E79: coalTotalCapCost
A81: 6 - Calculate Loan and Equity
A82: Loan amount | B82: =B79*(1-B39) -> 0 | C82: $000 | E82: LoanAmount
A83: Equity amount | B83: =B79*B39 -> 973.143605 | C83: $000 | E83: coalEquityAmount
A85: 7 - Discounted Cash Flow Analysis | B85: ($000)
A86: Years >>> | B86: 0 | C86: 1 | D86: 2 | E86: 3 | F86: 4 | G86: 5 | H86: 6 | I86: 7 | J86: 8 | K86: 9 | L86: 10 | M86: 11 | N86: 12 | O86: 13 | P86: 14 | Q86: 15 | R86: 16 | S86: 17 | T86: 18 | U86: 19 | V86: 20
A87: A - Benefits
C88: =IF(C$86<=$B$18,B58,0) -> 0 | D88: =IF(D$86<=$B$18,C88*(1+$B$37),0) -> 0 | E88: 0 | F88: 0 | G88: 0 | H88: 0 | I88: 0 | J88: 0 | K88: 0 | L88: 0 | M88: 0 | N88: 0 | O88: 0 | P88: 0 | Q88: 0 | R88: 0 | S88: 0 | T88: 0 | U88: 0 | V88: 0
A89: Carbon Credit Revenues | D89: =IF(C$86<=$B$18,$B63,0) -> 0 | E89: =IF(D$86<=$B$18,D89*(1+default8/100),0) -> 0 | F89: 0 | G89: 0 | H89: 0 | I89: 0 | J89: 0 | K89: 0 | L89: 0 | M89: 0 | N89: 0 | O89: 0 | P89: 0 | Q89: 0 | R89: 0 | S89: 0 | T89: 0 | U89: 0 | V89: 0 | W89: 0
A90: Total Benefits | C90: =SUM(C88:C89) -> 0 | D90: 0 | E90: 0 | F90: 0 | G90: 0 | H90: 0 | I90: 0 | J90: 0 | K90: 0 | L90: 0 | M90: 0 | N90: 0 | O90: 0 | P90: 0 | Q90: 0 | R90: 0 | S90: 0 | T90: 0 | U90: 0 | V90: 0
A91: B - Costs
A92: Annual Drainage and Flare O&M Cost | C92: =IF(C$86<=$B$18,-B71,0) -> 0 | D92: =IF(D$86<=$B$18,C92*(1+$B$37),0) -> 0 | E92: 0 | F92: 0 | G92: 0 | H92: 0 | I92: 0 | J92: 0 | K92: 0 | L92: 0 | M92: 0 | N92: 0 | O92: 0 | P92: 0 | Q92: 0 | R92: 0 | S92: 0 | T92: 0 | U92: 0 | V92: 0
A93: C - Cash Flow from Operations | C93: =SUM(C90:C92) -> 0 | D93: 0 | E93: 0 | F93: 0 | G93: 0 | H93: 0 | I93: 0 | J93: 0 | K93: 0 | L93: 0 | M93: 0 | N93: 0 | O93: 0 | P93: 0 | Q93: 0 | R93: 0 | S93: 0 | T93: 0 | U93: 0 | V93: 0
A95: D - Debt Service | C95: =IF(OR(C$86>$B$40,C$86>$B$18),0, PMT($B$41, $B$40, $B$82)) -> 0 | D95: 0 | E95: 0 | F95: 0 | G95: 0 | H95: 0 | I95: 0 | J95: 0 | K95: 0 | L95: 0 | M95: 0 | N95: 0 | O95: 0 | P95: 0 | Q95: 0 | R95: 0 | S95: 0 | T95: 0 | U95: 0 | V95: 0
A96: E - Net Cash Flow | B96: =-B83 -> -973.143605 | C96: =SUM(C93:C95) -> 0 | D96: =SUM(D93:D95) -> 0 | E96: 0 | F96: 0 | G96: 0 | H96: 0 | I96: 0 | J96: 0 | K96: 0 | L96: 0 | M96: 0 | N96: 0 | O96: 0 | P96: 0 | Q96: 0 | R96: 0 | S96: 0 | T96: 0 | U96: 0 | V96: 0
A98: 8 - Financial Measurements: IRR, NPV, Payback
A99: Internal Rate of Return - IRR | C99: =IF(ISERR(IRR($B96:V96)),0,IRR($B96:V96)) -> 0
A100: Net Present Value | C100: =NPV(B38,C96:V96)+cflareMinusEquityAmount -> -973.143605
A101: Payback Period | C101: =SUM(C103:V103) -> 0
B102: =IF(B$86<=$B$18,SUM($B96:B96),0) -> -973.143605 | C102: =IF(C$86<=$B$18,SUM($B96:C96),0) -> -973.143605 | D102: =IF(D$86<=$B$18,SUM($B96:D96),0) -> -973.143605 | E102: =IF(E$86<=$B$18,SUM($B96:E96),0) -> -973.143605 | F102: =IF(F$86<=$B$18,SUM($B96:F96),0) -> -973.143605 | G102: =IF(G$86<=$B$18,SUM($B96:G96),0) -> -973.143605 | H102: =IF(H$86<=$B$18,SUM($B96:H96),0) -> -973.143605 | I102: =IF(I$86<=$B$18,SUM($B96:I96),0) -> -973.143605 | J102: =IF(J$86<=$B$18,SUM($B96:J96),0) -> -973.143605 | K102: =IF(K$86<=$B$18,SUM($B96:K96),0) -> -973.143605 | L102: =IF(L$86<=$B$18,SUM($B96:L96),0) -> -973.143605 | M102: =IF(M$86<=$B$18,SUM($B96:M96),0) -> 0 | N102: =IF(N$86<=$B$18,SUM($B96:N96),0) -> 0 | O102: =IF(O$86<=$B$18,SUM($B96:O96),0) -> 0 | P102: =IF(P$86<=$B$18,SUM($B96:P96),0) -> 0 | Q102: =IF(Q$86<=$B$18,SUM($B96:Q96),0) -> 0 | R102: =IF(R$86<=$B$18,SUM($B96:R96),0) -> 0 | S102: =IF(S$86<=$B$18,SUM($B96:S96),0) -> 0 | T102: =IF(T$86<=$B$18,SUM($B96:T96),0) -> 0 | U102: =IF(U$86<=$B$18,SUM($B96:U96),0) -> 0 | V102: =IF(V$86<=$B$18,SUM($B96:V96),0) -> 0
C103: =IF(AND(C102>0,B102<0),C86+(1-C102/C96),0) -> 0 | D103: =IF(AND(D102>0,C102<0),D86+(1-D102/D96),0) -> 0 | E103: 0 | F103: 0 | G103: 0 | H103: 0 | I103: 0 | J103: 0 | K103: 0 | L103: 0 | M103: 0 | N103: 0 | O103: 0 | P103: 0 | Q103: 0 | R103: 0 | S103: 0 | T103: 0 | U103: 0 | V103: 0

Sheet OpenFlare (hidden)
A1: 1 - INPUT PARAMETERS | B1: Values | C1: units | D1: Comment | E1: Name | F1: Default | G1: Range
A2: =lblDrain1 -> What is the cost of well-head blowers? | B2: =drainage1 -> 0 | C2: $/HP
A3: =lblDrain2 -> What is the cost of satellite compressors? | B3: =drainage2 -> 1000 | C3: $/HP
A4: =lblDrain3 -> What is the distance from the drainage area to the onsite project? | B4: =drainage3 -> 21000 | C4: ft
A5: =lblDrain4 -> What is the cost of installing header pipe from the drainage area? | B5: =drainage4 -> 40 | C5: $/ft
A6: =lblDrain5 -> What are the compressor and blower efficiencies? | B6: =drainage5 -> 0.035 | C6: HP/mcfd
A7: =lblDrain6 -> What is the spacing between gob drainage wells? | B7: =drainage6 -> 1000 | C7: ft
A8: =lblDrain7 -> What is the mining rate? | B8: =drainage7 -> 12000 | C8: ft/yr
A9: =lblDrain7alt -> How many drainage wells are being utilized? | B9: =drainage7alt -> 0 | C9: wells
A10: What is the drainage gas source? | B10: =inputDrainageSource -> GW
A11: =lblDrain8 -> What is the mine depth? | B11: =drainage8 -> 0 | C11: ft/well
A12: =lblDrain9 -> What is the drilling cost? | B12: =drainage9 -> 0 | C12: $/ft
A13: =lblUser18 -> What percent of CMM is consumed by prime-mover use? | B13: =user18/100 -> 0.07
A14: =lblGas1 -> What do you expect the CMM drained per day to be? | B14: =gas1zz -> 1250 | C14: mcf/d
A15: CMM drained per hour | B15: =B14/24 -> 52.08333333 | C15: mcf/h
A16: =lblPctMethane -> Percent methane in drainage gas | B16: =inputPctMethane/100 -> 0.9 | D16: Use 30% for Flare Feasibility Test
A17: Actual gas flow | B17: =IF(B16<>0,B14/B16,0) -> 1388.888889 | C17: mcf/d
A18: =lblUser16 -> What is the planned project operational lifetime? | B18: =user16 -> 10 | C18: years | E18: oflareProjectLifetime
A19: =lblGas6 -> What is the fraction of CMM available after losses? | B19: =gas6zz/100 -> 0.95
A20: Average fuel available | B20: =B15*(B19-B13) -> 45.83333333 | C20: mcf/h
A21: Fuel value | B21: =B20*B33/1000 -> 41.70833333 | C21: mmBtu/h
A23: =lblDefault2 -> How many hours per year will the flare operate? | B23: =default2 -> 0 | C23: hours/yr | F23: 8000 | G23: 7500-8300
A25: =lblUser21 -> What is the capital cost of the open flare? | B25: =user21 -> 0 | C25: $000/mcfd | D25: User Defined Input Page | F25: 0.08 | G25: 0.03-0.13
A26: =lblUser22 -> What is the O&M cost of the open flare? | B26: =user22 -> 0 | C26: $000/yr | D26: User Defined Input Page | F26: 10 | G26: 5 - 15
A30: =lblDrain10 -> What is the fraction of this project's drainage system cost that will be included in the analysis? | B30: =drainage10/100 -> 0 | D30: added by JC 6/25
A31: Drainage and Transport sys unit cap cost | B31: =IF((B14*B19)<>0,(B3*B6)+(B4*B5*B16/(B14*B19))+(IF(B10="AM",B7*B5*B9*B16/(B14*B19),0))+ (B30*IF(inputDrainageSystem="Y",(B2*B6)+IF(B10="AM",B11*B12*B9*B16/(B14*B19),0),0)),0) -> 671.6315789 | C31: $/mcfd | D31: "X", tweaked by JC 6/25
A32: Drainage and Transport O&M cost | B32: =IF(AND(inputDrainageSource="GW",(B14*B19)<>0,B23<>0),((B8*B5)+IF(AND(inputDrainageSystem="Y",B7<>0),B8*B11*B12*B30/B7,0))*B16*24/(B14*B19)/B23,0) -> 0 | C32: $/mcf | D32: "Y", tweaked by JC 6/25
A33: CMM fuel value LHV | B33: 910 | C33: Btu/cf | D33: constant
A34: Weight of methane, tonnes | B34: 0.01926 | C34: tonnes/mcf | D34: constant
A35: =lblUser8 -> What is the carbon credit unit sale price? | B35: =user8 -> 2 | C35: $/tonne CO2E | E35: CER_UnitValue
A36: GWP ratio: methane to CO2 | B36: =default20 -> 25 | C36: ratio | D36: constant
A37: =lblDefault21 -> What is the inflation rate? | B37: =default21/100 -> 0.025 | E37: InflationRate
A38: =lblDefault26 -> What is the real discount rate? | B38: =default26/100 -> 0.12 | E38: RealDiscountRate
A39: =lblUser12 -> What is the developer's equity share in the project? | B39: =user12/100 -> 1 | E39: EquityPercent
A40: =lblUser15 -> What is the loan term? | B40: =user15 -> 5 | C40: yr | E40: loanTerm
A41: =lblUser5 -> What interest rate is charged for the loan? | B41: =user5/100 -> 0 | E41: InterestRate
A42: Cap Cost Factors
A43: =lblDefault7 -> What is the contingency factor? | B43: =default7/100 -> 0.05
A44: =lblDefault14 -> What are the "soft" costs for the project? | B44: =default14/100 -> 0.05
A45: Annual Cost Factors
A46: =lblDefault11 -> What are the royalty and severance taxes? | B46: =default11/100 -> 0
A47: =lblDefault15 -> What is the validation, verification and transaction cost to monetize carbon credits? | B47: =default15 -> 0.5 | C47: $/tCO2e
A49: 2 - Feasibility Test
A50: CMM heat value available/hour | B50: =B21 -> 41.70833333 | C50: mmBtu/h | D50: this is downstream availability
A52: CMM volume needed/hour | B52: =B50*1000/B33/(1-B13) -> 49.28315412 | C52: mcf/h | D52: incl prime mover, exclud fugitive
A53: CMM available for other uses | B53: 0 | C53: mcfd | D53: available at drainage wells | E53: cmmAvailable
A55: 3 - Calculate Annual Benefits
A59: CMM volume needed/hour | B59: =B52 -> 49.28315412 | C59: mcf/h
A60: Tonnes CH4 needed/hour | B60: =B59*B34 -> 0.9491935484 | C60: t/h
A61: Carbon credits earned per hour | B61: =B60*(B36-2.75) -> 21.11955645 | C61: t/h
A62: Carbon credits earned per year | B62: =B61*B23 -> 0 | C62: t/y | E62: coalCERsEarnedPerYear
A63: Carbon credit revenue per year | B63: =B62*B35/1000 -> 0 | C63: $000/y
A65: 4 - Calculate New Annual Costs
A66: Flare O&M cost | B66: =B26 -> 0 | C66: $000/y
A67: Drain & transport O&M cost/h | B67: =IF(B16<>0,(B52*B32)/B16,0) -> 0 | C67: $/h
A68: Drain & transport O&M cost/y | B68: =B67*B23/1000 -> 0 | C68: $000/y
A69: Royalty and severance taxes cost/yr | B69: =B14*365*3*B46/1000 -> 0
A70: Carbon credit monetization cost/yr | B70: =B47*oflareCERsEarnedPerYear/1000 -> 0 | C70: $000/y
A71: --
A72: Total annual cost | B72: =B68+B66+B70+B69 -> 0 | C72: $000/y | E72: coalTotalAnnualCost
A74: 5 - Calculate Project Capital Costs
A75: CMM needed per hour | B75: =B52 -> 49.28315412 | C75: mcf/h
A76: CMM transport system | B76: =IF(B16<>0,B31*B75*24/B16/1000,0) -> 882.6699365 | C76: $000
A77: Installed Cost Flare | B77: =B20*B25*24 -> 0 | C77: $000
A78: --
A79: Subtotal | B79: =SUM(B76:B77) -> 882.6699365 | C79: $000
A80: Total cap cost with factors | B80: =(B79*(1+B44))*(1+B43) -> 973.143605 | C80: $000 | E80: coalTotalCapCost
A82: 6 - Calculate Loan and Equity
A83: Loan amount | B83: =B80*(1-B39) -> 0 | C83: $000 | E83: LoanAmount
A84: Equity amount | B84: =B80*B39 -> 973.143605 | C84: $000 | E84: coalEquityAmount
A86: 7 - Discounted Cash Flow Analysis | B86: ($000)
A87: Years >>> | B87: 0 | C87: 1 | D87: 2 | E87: 3 | F87: 4 | G87: 5 | H87: 6 | I87: 7 | J87: 8 | K87: 9 | L87: 10 | M87: 11 | N87: 12 | O87: 13 | P87: 14 | Q87: 15 | R87: 16 | S87: 17 | T87: 18 | U87: 19 | V87: 20
A88: A - Benefits
C89: =IF(C$87<=$B$18,B58,0) -> 0 | D89: =IF(D$87<=$B$18,C89*(1+$B$37),0) -> 0 | E89: 0 | F89: 0 | G89: 0 | H89: 0 | I89: 0 | J89: 0 | K89: 0 | L89: 0 | M89: 0 | N89: 0 | O89: 0 | P89: 0 | Q89: 0 | R89: 0 | S89: 0 | T89: 0 | U89: 0 | V89: 0
A90: Carbon Credit Revenues | D90: =IF(C$87<=$B$18,$B63,0) -> 0 | E90: =IF(D$87<=$B$18,D90*(1+default8/100),0) -> 0 | F90: 0 | G90: 0 | H90: 0 | I90: 0 | J90: 0 | K90: 0 | L90: 0 | M90: 0 | N90: 0 | O90: 0 | P90: 0 | Q90: 0 | R90: 0 | S90: 0 | T90: 0 | U90: 0 | V90: 0 | W90: 0
A91: Total Benefits | C91: =SUM(C89:C90) -> 0 | D91: 0 | E91: 0 | F91: 0 | G91: 0 | H91: 0 | I91: 0 | J91: 0 | K91: 0 | L91: 0 | M91: 0 | N91: 0 | O91: 0 | P91: 0 | Q91: 0 | R91: 0 | S91: 0 | T91: 0 | U91: 0 | V91: 0
A92: B - Costs
A93: Annual Drainage and Flare O&M Cost | C93: =IF(C$87<=$B$18,-B72,0) -> 0 | D93: =IF(D$87<=$B$18,C93*(1+$B$37),0) -> 0 | E93: 0 | F93: 0 | G93: 0 | H93: 0 | I93: 0 | J93: 0 | K93: 0 | L93: 0 | M93: 0 | N93: 0 | O93: 0 | P93: 0 | Q93: 0 | R93: 0 | S93: 0 | T93: 0 | U93: 0 | V93: 0
A94: C - Cash Flow from Operations | C94: =SUM(C91:C93) -> 0 | D94: 0 | E94: 0 | F94: 0 | G94: 0 | H94: 0 | I94: 0 | J94: 0 | K94: 0 | L94: 0 | M94: 0 | N94: 0 | O94: 0 | P94: 0 | Q94: 0 | R94: 0 | S94: 0 | T94: 0 | U94: 0 | V94: 0
A96: D - Debt Service | C96: =IF(OR(C$87>$B$40,C$87>$B$18),0, PMT($B$41, $B$40, $B$83)) -> 0 | D96: 0 | E96: 0 | F96: 0 | G96: 0 | H96: 0 | I96: 0 | J96: 0 | K96: 0 | L96: 0 | M96: 0 | N96: 0 | O96: 0 | P96: 0 | Q96: 0 | R96: 0 | S96: 0 | T96: 0 | U96: 0 | V96: 0
A97: E - Net Cash Flow | B97: =-B84 -> -973.143605 | C97: =SUM(C94:C96) -> 0 | D97: =SUM(D94:D96) -> 0 | E97: 0 | F97: 0 | G97: 0 | H97: 0 | I97: 0 | J97: 0 | K97: 0 | L97: 0 | M97: 0 | N97: 0 | O97: 0 | P97: 0 | Q97: 0 | R97: 0 | S97: 0 | T97: 0 | U97: 0 | V97: 0
A99: 8 - Financial Measurements: IRR, NPV, Payback
A100: Internal Rate of Return - IRR | C100: =IF(ISERR(IRR($B97:V97)),0,IRR($B97:V97)) -> 0
A101: Net Present Value | C101: =NPV(B38,C97:V97)+oflareMinusEquityAmount -> -973.143605
A102: Payback Period | C102: =SUM(C104:V104) -> 0
B103: =IF(B$87<=$B$18,SUM($B97:B97),0) -> -973.143605 | C103: =IF(C$87<=$B$18,SUM($B97:C97),0) -> -973.143605 | D103: =IF(D$87<=$B$18,SUM($B97:D97),0) -> -973.143605 | E103: =IF(E$87<=$B$18,SUM($B97:E97),0) -> -973.143605 | F103: =IF(F$87<=$B$18,SUM($B97:F97),0) -> -973.143605 | G103: =IF(G$87<=$B$18,SUM($B97:G97),0) -> -973.143605 | H103: =IF(H$87<=$B$18,SUM($B97:H97),0) -> -973.143605 | I103: =IF(I$87<=$B$18,SUM($B97:I97),0) -> -973.143605 | J103: =IF(J$87<=$B$18,SUM($B97:J97),0) -> -973.143605 | K103: =IF(K$87<=$B$18,SUM($B97:K97),0) -> -973.143605 | L103: =IF(L$87<=$B$18,SUM($B97:L97),0) -> -973.143605 | M103: =IF(M$87<=$B$18,SUM($B97:M97),0) -> 0 | N103: =IF(N$87<=$B$18,SUM($B97:N97),0) -> 0 | O103: =IF(O$87<=$B$18,SUM($B97:O97),0) -> 0 | P103: =IF(P$87<=$B$18,SUM($B97:P97),0) -> 0 | Q103: =IF(Q$87<=$B$18,SUM($B97:Q97),0) -> 0 | R103: =IF(R$87<=$B$18,SUM($B97:R97),0) -> 0 | S103: =IF(S$87<=$B$18,SUM($B97:S97),0) -> 0 | T103: =IF(T$87<=$B$18,SUM($B97:T97),0) -> 0 | U103: =IF(U$87<=$B$18,SUM($B97:U97),0) -> 0 | V103: =IF(V$87<=$B$18,SUM($B97:V97),0) -> 0
C104: =IF(AND(C103>0,B103<0),C87+(1-C103/C97),0) -> 0 | D104: =IF(AND(D103>0,C103<0),D87+(1-D103/D97),0) -> 0 | E104: 0 | F104: 0 | G104: 0 | H104: 0 | I104: 0 | J104: 0 | K104: 0 | L104: 0 | M104: 0 | N104: 0 | O104: 0 | P104: 0 | Q104: 0 | R104: 0 | S104: 0 | T104: 0 | U104: 0 | V104: 0

Sheet Pipeline (hidden)
A1: 1 - INPUT PARAMETERS | B1: Values | C1: units | D1: Comment | E1: Name | F1: Default | G1: Range
A2: =lblDrain1 -> What is the cost of well-head blowers? | B2: =drainage1 -> 0 | C2: $/HP
A3: =lblDrain2 -> What is the cost of satellite compressors? | B3: =drainage2 -> 1000 | C3: $/HP
A4: =lblDrain3 -> What is the distance from the drainage area to the onsite project? | B4: =drainage3 -> 21000 | C4: ft
A5: =lblDrain4 -> What is the cost of installing header pipe from the drainage area? | B5: =drainage4 -> 40 | C5: $/ft
A6: =lblDrain5 -> What are the compressor and blower efficiencies? | B6: =drainage5 -> 0.035 | C6: HP/mcfd
A7: =lblDrain6 -> What is the spacing between gob drainage wells? | B7: =drainage6 -> 1000 | C7: ft
A8: =lblDrain7 -> What is the mining rate? | B8: =drainage7 -> 12000 | C8: ft/yr
A9: =lblDrain7alt -> How many drainage wells are being utilized? | B9: =drainage7alt -> 0 | C9: wells | D9: If source = AMM
A10: What is the drainage gas source? | B10: =inputDrainageSource -> GW
A11: =lblDrain8 -> What is the mine depth? | B11: =drainage8 -> 0 | C11: ft/well
A12: =lblDrain9 -> What is the drilling cost? | B12: =drainage9 -> 0 | C12: $/ft
A13: =lblUser18 -> What percent of CMM is consumed by prime-mover use? | B13: =user18/100 -> 0.07
A14: =lblGas1 -> What do you expect the CMM drained per day to be? | B14: =gas1zz -> 1250 | C14: mcf/d
A15: CMM drained per hour | B15: =B14/24 -> 52.08333333 | C15: mcf/h
A16: =lblPctMethane -> Percent methane in drainage gas | B16: =inputPctMethane/100 -> 0.9 | D16: Use 40% for Pipeline Inj. Feasibility Test
A17: Actual gas flow | B17: =IF(B16<>0,B14/B16,0) -> 1388.888889 | C17: mcf/d
A18: =lblUser16 -> What is the planned project operational lifetime? | B18: =user16 -> 10 | C18: years | E18: pipelineProjectLifetime
A19: =lblGas6 -> What is the fraction of CMM available after losses? | B19: =gas6zz/100 -> 0.95
A20: Average fuel available | B20: =B15*(B19-B13) -> 45.83333333 | C20: mcf/h | D20: excludes fugitive and primemover use
A21: Fuel value | B21: =B20*B31/1000 -> 41.70833333 | C21: mmBtu/h
A22: =lblUser13 -> What is the distance to the natural gas pipeline? | B22: =user13 -> 0 | C22: ft | D22: User Defined Input Page
A23: =lblDefault5 -> How many hours per year will the project operate? | B23: =default5 -> 0 | C23: hours/yr | D23: Defaults Parameter page | F23: 8000 | G23: 7500-8300
A24: =lblUser14 -> What is the installed cost of the high pressure line from the project site to the natural gas pipeline? | B24: =user14 -> 0 | C24: $/ft | D24: User Defined Input Page | F24: 55
A25: =lblUser2 -> What is the cost of electric power used by the project? | B25: =user2 -> 0 | C25: $/MW | D25: User Defined Input Page | F25: 70 | G25: 50-90
A26: =lblUser9 -> What is the price of the methane sold to the pipeline? | B26: =user9 -> 0 | C26: $/mmBtu(HHV) | D26: User Defined Input Page | F26: 8 | G26: 5 - 12
A27: =lblUser37 -> What is the cost of the oxygen removal system? | B27: =user37 -> 0 | C27: $,000 | D27: User Defined Input Page - added May 2015 | F27: 1250
A28: =lblDrain10 -> What is the fraction of this project's drainage system cost that will be included in the analysis? | B28: =drainage10/100 -> 0 | D28: added by JC 6/25
A29: Drainage and Transport sys unit cap cost | B29: =IF((B14*B19)<>0,(B3*B6)+(B4*B5*B16/(B14*B19))+(IF(B10="AM",B7*B5*B9*B16/(B14*B19),0))+ (B28*IF(inputDrainageSystem="Y",(B2*B6)+IF(B10="AM",B11*B12*B9*B16/(B14*B19),0),0)),0) -> 671.6315789 | C29: $/mcfd | D29: "X", tweaked by JC 6/25
A30: Drainage and Transport O&M cost | B30: =IF(AND(inputDrainageSource="GW",(B14*B19)<>0,B23<>0),((B8*B5)+IF(AND(inputDrainageSystem="Y",B7<>0),B8*B11*B12*B28/B7,0))*B16*24/(B14*B19)/B23,0) -> 0 | C30: $/mcf | D30: "Y", tweaked by JC 6/25
A31: CMM fuel value LHV | B31: 910 | C31: Btu/cf | D31: constant
A32: Weight of methane, tonnes | B32: 0.01926 | C32: tonnes/mcf | D32: constant
A33: =lblUser8 -> What is the carbon credit unit sale price? | B33: =user8 -> 2 | C33: $/tonne CO2E | E33: CER_UnitValue
A34: GWP ratio: methane to CO2 | B34: =default20 -> 25 | C34: ratio | D34: constant
A35: =lblDefault21 -> What is the inflation rate? | B35: =default21/100 -> 0.025 | E35: InflationRate
A36: =lblDefault26 -> What is the real discount rate? | B36: =default26/100 -> 0.12 | E36: RealDiscountRate
A37: =lblUser12 -> What is the developer's equity share in the project? | B37: =user12/100 -> 1 | E37: EquityPercent
A38: =lblUser15 -> What is the loan term? | B38: =user15 -> 5 | C38: yr | E38: loanTerm
A39: =lblUser5 -> What interest rate is charged for the loan? | B39: =user5/100 -> 0 | E39: InterestRate
A40: Cap Cost Factors
A41: =lblDefault7 -> What is the contingency factor? | B41: =default7/100 -> 0.05
A42: =lblDefault14 -> What are the "soft" costs for the project? | B42: =default14/100 -> 0.05
A43: Annual Cost Factors
A44: =lblDefault15 -> What is the validation, verification and transaction cost to monetize carbon credits? | B44: =default15 -> 0.5 | C44: $/tCO2e
A45: =lblDefault11 -> What are the royalty and severance taxes? | B45: =default11/100 -> 0
A47: CMM fuel value HHV | B47: 1010 | C47: Btu/cf | D47: constant
A48: 2 - Feasibility Test
A49: CMM combusted in gathering sys. prime movers | B49: =B13*B15 -> 3.645833333 | C49: mcf/h
A50: CMM entering project | B50: =B20 -> 45.83333333 | C50: mcf/h
A51: CMM volume sold to pipeline | B51: =B50*(0.959-0.2644*(1-B16)) -> 42.74233333 | C51: mcf/h | D51: 0.959 and 0.2644 come from the regression equation of the graph in fig 2 on page 36 of the original manual
A52: CMM available for other uses | B52: 0 | C52: mcf/d
A54: 3 - Calculate Annual Benefits
A56: CMM volume sold to pipeline | B56: =B51 -> 42.74233333 | C56: mcf/h
A57: Revenue from gas sales | B57: =B56*B23*B47*B26/1000/1000 -> 0 | C57: $000/yr
A58: CMM available for carbon credits | B58: =B51+B49 -> 46.38816667 | C58: mcf/h
A59: Tonnes CH4 available for carbon credits | B59: =B58*B32 -> 0.89343609 | C59: t/h
A60: Carbon credits earned per hour | B60: =B59*B34-(IF(B16=0,0,(B50*0.43*24*0.7457*default9/B16/1000))) -> 22.10467725 | C60: t/h
A61: Carbon credits earned per year | B61: =B60*B23 -> 0 | C61: t/y | E61: coalCERsEarnedPerYear
A62: Carbon credit revenue per year | B62: =B61*B33/1000 -> 0 | C62: $000/y
A64: 4 - Calculate New Annual Costs
A65: Project O&M cost | B65: =IF(B16<>0,(300)+(0.75*B23*B50/B16/1000)+(B50*B23*B25*0.43*24*0.7457/B16/1000/1000),0) -> 300 | C65: $000/yr | D65: =IF(B16<>0,(300)+(0.75*B23*B49/B16/1000)+(B49*B23*B25*0.43*24*0.7457/B16/1000/1000),0) | L65: Fixed O&M of $300K + variable O&M of $0.75/mcf + cost of electricity used
A66: Drain & transport O&M cost/h | B66: =IF(B16<>0,(B50*B30)/B16,0) -> 0 | C66: $/h | L66: 0.43 = compression demands in mmscf/d per hp
A67: Drain & transport O&M cost/y | B67: =B66*B23/1000 -> 0 | C67: $000/y | L67: 0.7457 = kw/hp
A68: Carbon credit monetization cost/yr | B68: =B44*pipelineCERsEarnedPerYear/1000 -> 0 | C68: $000/y | L68: 24 = hr/d
A69: Royalty and severance taxes | B69: =B57*B45 -> 0 | C69: $000/y
A70: Total annual cost | B70: =B67+B65+B68+B69 -> 300 | C70: $000/y | E70: coalTotalAnnualCost
A72: 5 - Calculate Project Capital Costs
A73: CMM needed per hour | B73: =B50 -> 45.83333333 | C73: mcf/h
A74: CMM transport system | B74: =IF(B16<>0,B29*B73*24/B16/1000,0) -> 820.8830409 | C74: $000
A75: Installed Cost of Processing Plant | B75: =IF(B16<>0,(B27)+(B22*B24/1000)+(936)+(B50*24*(1.5765*(1-B16)+0.6196)/B16),0) -> 1885.972222 | C75: $000 | L75: 5/15 Cost of catox now included as user input - (1250 = was fixed cap cost of oxidizer)
A76: -- | L76: 936, 1.5765, 0.6196 = come from regression equation on the curve in the Swing absorber graph (p.36 of original manual)
A77: Subtotal | B77: =SUM(B74:B75) -> 2706.855263 | C77: $000
A78: Total cap cost with factors | B78: =(B77*(1+B42))*(1+B41) -> 2984.307928 | C78: $000 | E78: coalTotalCapCost
A80: 6 - Calculate Loan and Equity
A81: Loan amount | B81: =B78*(1-B37) -> 0 | C81: $000 | E81: LoanAmount
A82: Equity amount | B82: =B78*B37 -> 2984.307928 | C82: $000 | E82: coalEquityAmount
A84: 7 - Discounted Cash Flow Analysis | B84: ($000)
A85: Years >>> | B85: 0 | C85: 1 | D85: 2 | E85: 3 | F85: 4 | G85: 5 | H85: 6 | I85: 7 | J85: 8 | K85: 9 | L85: 10 | M85: 11 | N85: 12 | O85: 13 | P85: 14 | Q85: 15 | R85: 16 | S85: 17 | T85: 18 | U85: 19 | V85: 20
A86: A - Benefits
A87: Gas Sales Revenues | C87: =IF(C$85<=$B$18,B57,0) -> 0 | D87: =IF(D$85<=$B$18,C87*(1+$B$35),0) -> 0 | E87: 0 | F87: 0 | G87: 0 | H87: 0 | I87: 0 | J87: 0 | K87: 0 | L87: 0 | M87: 0 | N87: 0 | O87: 0 | P87: 0 | Q87: 0 | R87: 0 | S87: 0 | T87: 0 | U87: 0 | V87: 0
A88: Carbon Credit Revenues | D88: =IF(C$85<=$B$18,$B62,0) -> 0 | E88: =IF(D$85<=$B$18,D88*(1+default8/100),0) -> 0 | F88: 0 | G88: 0 | H88: 0 | I88: 0 | J88: 0 | K88: 0 | L88: 0 | M88: 0 | N88: 0 | O88: 0 | P88: 0 | Q88: 0 | R88: 0 | S88: 0 | T88: 0 | U88: 0 | V88: 0 | W88: 0
A89: Total Benefits | C89: =SUM(C87:C88) -> 0 | D89: 0 | E89: 0 | F89: 0 | G89: 0 | H89: 0 | I89: 0 | J89: 0 | K89: 0 | L89: 0 | M89: 0 | N89: 0 | O89: 0 | P89: 0 | Q89: 0 | R89: 0 | S89: 0 | T89: 0 | U89: 0 | V89: 0
A90: B - Costs
A91: Annual Drainage and Project O&M Cost | C91: =IF(C$85<=$B$18,-B70,0) -> -300 | D91: =IF(D$85<=$B$18,C91*(1+$B$35),0) -> -307.5 | E91: -315.1875 | F91: -323.0671875 | G91: -331.1438672 | H91: -339.4224639 | I91: -347.9080255 | J91: -356.6057261 | K91: -365.5208693 | L91: -374.658891 | M91: 0 | N91: 0 | O91: 0 | P91: 0 | Q91: 0 | R91: 0 | S91: 0 | T91: 0 | U91: 0 | V91: 0
A92: C - Cash Flow from Operations | C92: =SUM(C89:C91) -> -300 | D92: -307.5 | E92: -315.1875 | F92: -323.0671875 | G92: -331.1438672 | H92: -339.4224639 | I92: -347.9080255 | J92: -356.6057261 | K92: -365.5208693 | L92: -374.658891 | M92: 0 | N92: 0 | O92: 0 | P92: 0 | Q92: 0 | R92: 0 | S92: 0 | T92: 0 | U92: 0 | V92: 0
A94: D - Debt Service | C94: =IF(OR(C$85>$B$38,C$85>$B$18),0, PMT($B$39, $B$38, $B$81)) -> 0 | D94: 0 | E94: 0 | F94: 0 | G94: 0 | H94: 0 | I94: 0 | J94: 0 | K94: 0 | L94: 0 | M94: 0 | N94: 0 | O94: 0 | P94: 0 | Q94: 0 | R94: 0 | S94: 0 | T94: 0 | U94: 0 | V94: 0
A95: E - Net Cash Flow | B95: =-B82 -> -2984.307928 | C95: =SUM(C92:C94) -> -300 | D95: =SUM(D92:D94) -> -307.5 | E95: -315.1875 | F95: -323.0671875 | G95: -331.1438672 | H95: -339.4224639 | I95: -347.9080255 | J95: -356.6057261 | K95: -365.5208693 | L95: -374.658891 | M95: 0 | N95: 0 | O95: 0 | P95: 0 | Q95: 0 | R95: 0 | S95: 0 | T95: 0 | U95: 0 | V95: 0
A97: 8 - Financial Measurements: IRR, NPV, Payback
A98: Internal Rate of Return - IRR | C98: =IF(ISERR(IRR($B95:V95)),0,IRR($B95:V95)) -> 0 | D98: IRR needs at least one positive cash flow value. ISERR catches error and returns "0"
A99: Net Present Value | C99: =NPV(B36,C95:V95)+pipelineMinusEquityAmount -> -4840.666989
A100: Payback Period | C100: =SUM(C102:V102) -> 0
B101: =IF(B$85<=$B$18,SUM($B95:B95),0) -> -2984.307928 | C101: =IF(C$85<=$B$18,SUM($B95:C95),0) -> -3284.307928 | D101: =IF(D$85<=$B$18,SUM($B95:D95),0) -> -3591.807928 | E101: =IF(E$85<=$B$18,SUM($B95:E95),0) -> -3906.995428 | F101: =IF(F$85<=$B$18,SUM($B95:F95),0) -> -4230.062615 | G101: =IF(G$85<=$B$18,SUM($B95:G95),0) -> -4561.206482 | H101: =IF(H$85<=$B$18,SUM($B95:H95),0) -> -4900.628946 | I101: =IF(I$85<=$B$18,SUM($B95:I95),0) -> -5248.536972 | J101: =IF(J$85<=$B$18,SUM($B95:J95),0) -> -5605.142698 | K101: =IF(K$85<=$B$18,SUM($B95:K95),0) -> -5970.663567 | L101: =IF(L$85<=$B$18,SUM($B95:L95),0) -> -6345.322458 | M101: =IF(M$85<=$B$18,SUM($B95:M95),0) -> 0 | N101: =IF(N$85<=$B$18,SUM($B95:N95),0) -> 0 | O101: =IF(O$85<=$B$18,SUM($B95:O95),0) -> 0 | P101: =IF(P$85<=$B$18,SUM($B95:P95),0) -> 0 | Q101: =IF(Q$85<=$B$18,SUM($B95:Q95),0) -> 0 | R101: =IF(R$85<=$B$18,SUM($B95:R95),0) -> 0 | S101: =IF(S$85<=$B$18,SUM($B95:S95),0) -> 0 | T101: =IF(T$85<=$B$18,SUM($B95:T95),0) -> 0 | U101: =IF(U$85<=$B$18,SUM($B95:U95),0) -> 0 | V101: =IF(V$85<=$B$18,SUM($B95:V95),0) -> 0
C102: =IF(AND(C101>0,B101<0),C85+(1-C101/C95),0) -> 0 | D102: =IF(AND(D101>0,C101<0),D85+(1-D101/D95),0) -> 0 | E102: 0 | F102: 0 | G102: 0 | H102: 0 | I102: 0 | J102: 0 | K102: 0 | L102: 0 | M102: 0 | N102: 0 | O102: 0 | P102: 0 | Q102: 0 | R102: 0 | S102: 0 | T102: 0 | U102: 0 | V102: 0

Sheet CNG (hidden)
A1: 1 - INPUT PARAMETERS | B1: Values | C1: units | D1: Comment | E1: Name | F1: Default | G1: Range
A2: =lblDrain1 -> What is the cost of well-head blowers? | B2: =drainage1 -> 0 | C2: $/HP
A3: =lblDrain2 -> What is the cost of satellite compressors? | B3: =drainage2 -> 1000 | C3: $/HP
A4: =lblDrain3 -> What is the distance from the drainage area to the onsite project? | B4: =drainage3 -> 21000 | C4: ft
A5: =lblDrain4 -> What is the cost of installing header pipe from the drainage area? | B5: =drainage4 -> 40 | C5: $/ft
A6: =lblDrain5 -> What are the compressor and blower efficiencies? | B6: =drainage5 -> 0.035 | C6: HP/mcfd
A7: =lblDrain6 -> What is the spacing between gob drainage wells? | B7: =drainage6 -> 1000 | C7: ft
A8: =lblDrain7 -> What is the mining rate? | B8: =drainage7 -> 12000 | C8: ft/yr
A9: =lblDrain7alt -> How many drainage wells are being utilized? | B9: =drainage7alt -> 0 | C9: wells | D9: If source = AMM
A10: What is the drainage gas source? | B10: =inputDrainageSource -> GW
A11: =lblDrain8 -> What is the mine depth? | B11: =drainage8 -> 0 | C11: ft/well
A12: =lblDrain9 -> What is the drilling cost? | B12: =drainage9 -> 0 | C12: $/ft
A13: =lblUser18 -> What percent of CMM is consumed by prime-mover use? | B13: =user18/100 -> 0.07
A14: =lblGas1 -> What do you expect the CMM drained per day to be? | B14: =gas1zz -> 1250 | C14: mcf/d
A15: CMM drained per hour | B15: =B14/24 -> 52.08333333 | C15: mcf/h
A16: =lblPctMethane -> Percent methane in drainage gas | B16: =inputPctMethane/100 -> 0.9 | D16: Use 40% for CNG Feasibility Test
A17: Actual gas flow | B17: =IF(B16<>0,B14/B16,0) -> 1388.888889 | C17: mcf/d
A18: =lblUser16 -> What is the planned project operational lifetime? | B18: =user16 -> 10 | C18: years | E18: cngProjectLifetime
A19: =lblGas6 -> What is the fraction of CMM available after losses? | B19: =gas6zz/100 -> 0.95
A20: Average fuel available | B20: =B15*(B19-B13) -> 45.83333333 | C20: mcf/h | D20: excludes fugitive and primemover use
A21: Fuel value | B21: =B20*B31/1000 -> 41.70833333 | C21: mmBtu/h
A22: =lblUser30 -> What is the size of the CNG distribution system? | B22: =User30 -> 0 | C22: GGE/day | D22: User Defined Input Page | F22: =OFFSET(User30,0,1) -> 800 | G22: =OFFSET(User30,0,4) -> [20-2,000]
A23: =lblDefault5 -> How many hours per year will the project operate? | B23: =default5 -> 0 | C23: hours/yr | D23: Defaults Parameter page | F23: 8000 | G23: 7500-8300
A24: =lblUser31 -> What is the installed capital cost of the CNG system? | B24: =User31 -> 0 | C24: $/GGE/day | D24: User Defined Input Page | F24: =OFFSET(User31,0,1) -> 1000 | G24: =OFFSET(User31,0,4) -> [500-1,500]
A25: =lblUser2 -> What is the cost of electric power used by the project? | B25: =user2 -> 0 | C25: $/MW | D25: User Defined Input Page | F25: 70 | G25: 50-90
A26: =lblUser28 -> What is the price of sold CNG? | B26: =user28 -> 0 | C26: $/GGE | D26: User Defined Input Page | F26: =OFFSET(user28,0,1) -> 2 | G26: =OFFSET(user28,0,4) -> [0.80-2.50]
A27: =lblUser37 -> What is the cost of the oxygen removal system? | B27: =user37 -> 0 | C27: $,000 | D27: User Defined Input Page - added May 2015 | F27: 1250
A28: =lblDrain10 -> What is the fraction of this project's drainage system cost that will be included in the analysis? | B28: =drainage10/100 -> 0 | D28: added by JC 6/25
A29: Drainage and Transport sys unit cap cost | B29: =IF((B14*B19)<>0,(B3*B6)+(B4*B5*B16/(B14*B19))+(IF(B10="AM",B7*B5*B9*B16/(B14*B19),0))+ (B28*IF(inputDrainageSystem="Y",(B2*B6)+IF(B10="AM",B11*B12*B9*B16/(B14*B19),0),0)),0) -> 671.6315789 | C29: $/mcfd | D29: "X", tweaked by JC 6/25
A30: Drainage and Transport O&M cost | B30: =IF(AND(inputDrainageSource="GW",(B14*B19)<>0,B23<>0),((B8*B5)+IF(AND(inputDrainageSystem="Y",B7<>0),B8*B11*B12*B28/B7,0))*B16*24/(B14*B19)/B23,0) -> 0 | C30: $/mcf | D30: "Y", tweaked by JC 6/25
A31: CMM fuel value LHV | B31: 910 | C31: Btu/cf | D31: constant
A32: Weight of methane, tonnes | B32: 0.01926 | C32: tonnes/mcf | D32: constant
A33: =lblUser8 -> What is the carbon credit unit sale price? | B33: =user8 -> 2 | C33: $/tonne CO2E | E33: CER_UnitValue
A34: GWP ratio: methane to CO2 | B34: =default20 -> 25 | C34: ratio | D34: constant
A35: =lblDefault21 -> What is the inflation rate? | B35: =default21/100 -> 0.025 | E35: InflationRate
A36: =lblDefault26 -> What is the real discount rate? | B36: =default26/100 -> 0.12 | E36: RealDiscountRate
A37: =lblUser12 -> What is the developer's equity share in the project? | B37: =user12/100 -> 1 | E37: EquityPercent
A38: =lblUser15 -> What is the loan term? | B38: =user15 -> 5 | C38: yr | E38: loanTerm
A39: =lblUser5 -> What interest rate is charged for the loan? | B39: =user5/100 -> 0 | E39: InterestRate
A40: Cap Cost Factors
A41: =lblDefault7 -> What is the contingency factor? | B41: =default7/100 -> 0.05
A42: =lblDefault14 -> What are the "soft" costs for the project? | B42: =default14/100 -> 0.05
A43: Annual Cost Factors
A44: =lblDefault15 -> What is the validation, verification and transaction cost to monetize carbon credits? | B44: =default15 -> 0.5 | C44: $/tCO2e
A45: =lblUser38 -> What is the O&M cost of the CNG system? | B45: =user38 -> 0 | C45: $/GGE/day
A46: =lblDefault11 -> What are the royalty and severance taxes? | B46: =default11/100 -> 0
A48: CMM fuel value HHV | B48: 1010 | C48: Btu/cf | D48: constant
A49: 2 - Feasibility Test
A50: CMM combusted in gathering sys. prime movers | B50: =B13*B15 -> 3.645833333 | C50: mcf/h | D50: =_xlfn.FORMULATEXT(B50) -> =B13*B15
A51: CMM needed for project | B51: =(B22*0.126/24)/(0.959-0.2644*(1-B16)) -> 0 | C51: mcf/h | D51: =_xlfn.FORMULATEXT(B51) -> =(B22*0.126/24)/(0.959-0.2644*(1-B16)) | J51: 126 scf per GGE
A52: CMM volume after processing | B52: =B51*(0.959-0.2644*(1-B16)) -> 0 | C52: mcf/h | D52: =_xlfn.FORMULATEXT(B52) -> =B51*(0.959-0.2644*(1-B16)) | J52: 0.959 and 0.2644 come from the regression equation of the graph in fig 2 on page 36 of the original manual
A53: CMM available for other uses | B53: =IF(OR(B51>B20,inputScenFlare="OF",inputScenFlare="EF",B19=0),0,(B20-B51)*24) -> 1100 | C53: mcf/d | D53: =_xlfn.FORMULATEXT(B53) -> =IF(OR(B51>B20,inputScenFlare="OF",inputScenFlare="EF",B19=0),0,(B20-B51)*24)
A55: 3 - Calculate Annual Benefits
A57: CNG volume sold | B57: =B52 -> 0 | C57: mcf/h
A58: Revenue from gas sales | B58: =(B22/24)*B23*B26/1000 -> 0 | C58: $000/yr
A59: CMM available for carbon credits | B59: =B52+B50 -> 3.645833333 | C59: mcf/h
A60: Tonnes CH4 available for carbon credits | B60: =B59*B32 -> 0.07021875 | C60: t/h
A61: Carbon credits earned per hour | B61: =B60*B34-(IF(B16=0,0,(B51*0.43*24*0.7457*default9/B16/1000))) -> 1.75546875 | C61: t/h | D61: =_xlfn.FORMULATEXT(B61) -> =B60*B34-(IF(B16=0,0,(B51*0.43*24*0.7457*default9/B16/1000))) | J61: 0.43 = compression demands in mmscf/d per hp; 0.7457 = kw/hp default9=electric grid emission factor (tonnes CO2/MWh)
A62: Carbon credits earned per year | B62: =B61*B23 -> 0 | C62: t/y | E62: cngCERsEarnedPerYear
A63: Carbon credit revenue per year | B63: =B62*B33/1000 -> 0 | C63: $000/y
A65: 4 - Calculate New Annual Costs
A66: CNG distribution system O&M cost | B66: =(B22*B45/24)*B23/1000 -> 0 | C66: $000/yr | D66: =_xlfn.FORMULATEXT(B66) -> =(B22*B45/24)*B23/1000
A67: Processing system O&M cost | B67: =IF(B16<>0,(300)+(0.75*B23*B51/B16/1000)+(B51*B23*B25*0.43*24*0.7457/B16/1000/1000),0) -> 300 | C67: $000/yr | D67: =IF(B16<>0,(300)+(0.75*B23*B51/B16/1000)+(B51*B23*B25*0.43*24*0.7457/B16/1000/1000),0) | L67: Fixed O&M of $300K + variable O&M of $0.75/mcf + cost of electricity used
A68: Drain & transport O&M cost/h | B68: =IF(B16<>0,(B51*B30)/B16,0) -> 0 | C68: $/h | D68: =IF(B16<>0,(B51*B30)/B16,0) | L68: 0.43 = compression demands in mmscf/d per hp
A69: Drain & transport O&M cost/y | B69: =B68*B23/1000 -> 0 | C69: $000/y | D69: =B68*B23/1000 | L69: 0.7457 = kw/hp
A70: Carbon credit monetization cost/yr | B70: =B44*cngCERsEarnedPerYear/1000 -> 0 | C70: $000/y | D70: =B44*cngCERsEarnedPerYear/1000 | L70: 24 = hr/d
A71: Royalty and severance taxes | B71: =B58*B46 -> 0 | C71: $000/y | D71: =B58*B46
A72: Total annual cost | B72: =SUM(B66:B71)-B68 -> 300 | C72: $000/y | E72: cngTotalAnnualCost
A74: 5 - Calculate Project Capital Costs
A75: CMM needed per hour | B75: =B51 -> 0 | C75: mcf/h
A76: CMM transport system | B76: =IF(B16<>0,B29*B75*24/B16/1000,0) -> 0 | C76: $,000 | D76: =_xlfn.FORMULATEXT(B76) -> =IF(B16<>0,B29*B75*24/B16/1000,0)
A77: Installed Cost of Processing Plant | B77: =IF(B16<>0,(B27)+(936)+(B51*24*(1.5765*(1-B16)+0.6196)/B16),0) -> 936 | C77: $,000 | D77: =_xlfn.FORMULATEXT(B77) -> =IF(B16<>0,(B27)+(936)+(B51*24*(1.5765*(1-B16)+0.6196)/B16),0) | F77: Plant cleans gas and compresses to 900 psi | L77: 5/15 Cost of catox now included as user input - (1250 = was fixed cap cost of oxidizer)
A78: Installed Cost of CNG Distribution System | B78: =B22*B24/1000 -> 0 | C78: $,000 | D78: =_xlfn.FORMULATEXT(B78) -> =B22*B24/1000 | L78: 936, 1.5765, 0.6196 = come from regression equation on the curve in the Swing absorber graph (p.36 of original manual)
A79: Subtotal | B79: =SUM(B76:B78) -> 936 | C79: $,000 | D79: =_xlfn.FORMULATEXT(B79) -> =SUM(B76:B78)
A80: Total cap cost with factors | B80: =(B79*(1+B42))*(1+B41) -> 1031.94 | C80: $,000 | D80: =_xlfn.FORMULATEXT(B80) -> =(B79*(1+B42))*(1+B41) | E80: cngTotalCapCost
A82: 6 - Calculate Loan and Equity
A83: Loan amount | B83: =B80*(1-B37) -> 0 | C83: $000 | E83: cngLoanAmount
A84: Equity amount | B84: =B80*B37 -> 1031.94 | C84: $000 | E84: cngEquityAmount
A86: 7 - Discounted Cash Flow Analysis | B86: ($000)
A87: Years >>> | B87: 0 | C87: 1 | D87: 2 | E87: 3 | F87: 4 | G87: 5 | H87: 6 | I87: 7 | J87: 8 | K87: 9 | L87: 10 | M87: 11 | N87: 12 | O87: 13 | P87: 14 | Q87: 15 | R87: 16 | S87: 17 | T87: 18 | U87: 19 | V87: 20
A88: A - Benefits
A89: Gas Sales Revenues | C89: =IF(C$87<=$B$18,B58,0) -> 0 | D89: =IF(D$87<=$B$18,C89*(1+$B$35),0) -> 0 | E89: 0 | F89: 0 | G89: 0 | H89: 0 | I89: 0 | J89: 0 | K89: 0 | L89: 0 | M89: 0 | N89: 0 | O89: 0 | P89: 0 | Q89: 0 | R89: 0 | S89: 0 | T89: 0 | U89: 0 | V89: 0
A90: Carbon Credit Revenues | D90: =IF(C$87<=$B$18,$B63,0) -> 0 | E90: =IF(D$87<=$B$18,D90*(1+default8/100),0) -> 0 | F90: 0 | G90: 0 | H90: 0 | I90: 0 | J90: 0 | K90: 0 | L90: 0 | M90: 0 | N90: 0 | O90: 0 | P90: 0 | Q90: 0 | R90: 0 | S90: 0 | T90: 0 | U90: 0 | V90: 0 | W90: 0
A91: Total Benefits | C91: =SUM(C89:C90) -> 0 | D91: 0 | E91: 0 | F91: 0 | G91: 0 | H91: 0 | I91: 0 | J91: 0 | K91: 0 | L91: 0 | M91: 0 | N91: 0 | O91: 0 | P91: 0 | Q91: 0 | R91: 0 | S91: 0 | T91: 0 | U91: 0 | V91: 0
A92: B - Costs
A93: Annual Drainage and Project O&M Cost | C93: =IF(C$87<=$B$18,-B72,0) -> -300 | D93: =IF(D$87<=$B$18,C93*(1+$B$35),0) -> -307.5 | E93: -315.1875 | F93: -323.0671875 | G93: -331.1438672 | H93: -339.4224639 | I93: -347.9080255 | J93: -356.6057261 | K93: -365.5208693 | L93: -374.658891 | M93: 0 | N93: 0 | O93: 0 | P93: 0 | Q93: 0 | R93: 0 | S93: 0 | T93: 0 | U93: 0 | V93: 0
A94: C - Cash Flow from Operations | C94: =SUM(C91:C93) -> -300 | D94: -307.5 | E94: -315.1875 | F94: -323.0671875 | G94: -331.1438672 | H94: -339.4224639 | I94: -347.9080255 | J94: -356.6057261 | K94: -365.5208693 | L94: -374.658891 | M94: 0 | N94: 0 | O94: 0 | P94: 0 | Q94: 0 | R94: 0 | S94: 0 | T94: 0 | U94: 0 | V94: 0
A96: D - Debt Service | C96: =IF(OR(C$87>$B$38,C$87>$B$18),0, PMT($B$39, $B$38, $B$83)) -> 0 | D96: 0 | E96: 0 | F96: 0 | G96: 0 | H96: 0 | I96: 0 | J96: 0 | K96: 0 | L96: 0 | M96: 0 | N96: 0 | O96: 0 | P96: 0 | Q96: 0 | R96: 0 | S96: 0 | T96: 0 | U96: 0 | V96: 0
A97: E - Net Cash Flow | B97: =-B84 -> -1031.94 | C97: =SUM(C94:C96) -> -300 | D97: =SUM(D94:D96) -> -307.5 | E97: -315.1875 | F97: -323.0671875 | G97: -331.1438672 | H97: -339.4224639 | I97: -347.9080255 | J97: -356.6057261 | K97: -365.5208693 | L97: -374.658891 | M97: 0 | N97: 0 | O97: 0 | P97: 0 | Q97: 0 | R97: 0 | S97: 0 | T97: 0 | U97: 0 | V97: 0
A99: 8 - Financial Measurements: IRR, NPV, Payback
A100: Internal Rate of Return - IRR | C100: =IF(ISERR(IRR($B97:V97)),0,IRR($B97:V97)) -> 0 | D100: IRR needs at least one positive cash flow value. ISERR catches error and returns "0"
A101: Net Present Value | C101: =NPV(B36,C97:V97)+cngMinusEquityAmount -> -2888.299062
A102: Payback Period | C102: =SUM(C104:V104) -> 0
B103: =IF(B$87<=$B$18,SUM($B97:B97),0) -> -1031.94 | C103: =IF(C$87<=$B$18,SUM($B97:C97),0) -> -1331.94 | D103: =IF(D$87<=$B$18,SUM($B97:D97),0) -> -1639.44 | E103: =IF(E$87<=$B$18,SUM($B97:E97),0) -> -1954.6275 | F103: =IF(F$87<=$B$18,SUM($B97:F97),0) -> -2277.694687 | G103: =IF(G$87<=$B$18,SUM($B97:G97),0) -> -2608.838555 | H103: =IF(H$87<=$B$18,SUM($B97:H97),0) -> -2948.261019 | I103: =IF(I$87<=$B$18,SUM($B97:I97),0) -> -3296.169044 | J103: =IF(J$87<=$B$18,SUM($B97:J97),0) -> -3652.77477 | K103: =IF(K$87<=$B$18,SUM($B97:K97),0) -> -4018.295639 | L103: =IF(L$87<=$B$18,SUM($B97:L97),0) -> -4392.95453 | M103: =IF(M$87<=$B$18,SUM($B97:M97),0) -> 0 | N103: =IF(N$87<=$B$18,SUM($B97:N97),0) -> 0 | O103: =IF(O$87<=$B$18,SUM($B97:O97),0) -> 0 | P103: =IF(P$87<=$B$18,SUM($B97:P97),0) -> 0 | Q103: =IF(Q$87<=$B$18,SUM($B97:Q97),0) -> 0 | R103: =IF(R$87<=$B$18,SUM($B97:R97),0) -> 0 | S103: =IF(S$87<=$B$18,SUM($B97:S97),0) -> 0 | T103: =IF(T$87<=$B$18,SUM($B97:T97),0) -> 0 | U103: =IF(U$87<=$B$18,SUM($B97:U97),0) -> 0 | V103: =IF(V$87<=$B$18,SUM($B97:V97),0) -> 0
C104: =IF(AND(C103>0,B103<0),C87+(1-C103/C97),0) -> 0 | D104: =IF(AND(D103>0,C103<0),D87+(1-D103/D97),0) -> 0 | E104: 0 | F104: 0 | G104: 0 | H104: 0 | I104: 0 | J104: 0 | K104: 0 | L104: 0 | M104: 0 | N104: 0 | O104: 0 | P104: 0 | Q104: 0 | R104: 0 | S104: 0 | T104: 0 | U104: 0 | V104: 0

Sheet LNG (hidden)
A1: 1 - INPUT PARAMETERS | B1: Values | C1: units | D1: Comment | E1: Name | F1: Default | G1: Range
A2: =lblDrain1 -> What is the cost of well-head blowers? | B2: =drainage1 -> 0 | C2: $/HP
A3: =lblDrain2 -> What is the cost of satellite compressors? | B3: =drainage2 -> 1000 | C3: $/HP
A4: =lblDrain3 -> What is the distance from the drainage area to the onsite project? | B4: =drainage3 -> 21000 | C4: ft
A5: =lblDrain4 -> What is the cost of installing header pipe from the drainage area? | B5: =drainage4 -> 40 | C5: $/ft
A6: =lblDrain5 -> What are the compressor and blower efficiencies? | B6: =drainage5 -> 0.035 | C6: HP/mcfd
A7: =lblDrain6 -> What is the spacing between gob drainage wells? | B7: =drainage6 -> 1000 | C7: ft
A8: =lblDrain7 -> What is the mining rate? | B8: =drainage7 -> 12000 | C8: ft/yr
A9: =lblDrain7alt -> How many drainage wells are being utilized? | B9: =drainage7alt -> 0 | C9: wells | D9: If source = AMM
A10: What is the drainage gas source? | B10: =inputDrainageSource -> GW
A11: =lblDrain8 -> What is the mine depth? | B11: =drainage8 -> 0 | C11: ft/well
A12: =lblDrain9 -> What is the drilling cost? | B12: =drainage9 -> 0 | C12: $/ft
A13: =lblUser18 -> What percent of CMM is consumed by prime-mover use? | B13: =user18/100 -> 0.07
A14: =lblGas1 -> What do you expect the CMM drained per day to be? | B14: =gas1zz -> 1250 | C14: mcf/d
A15: CMM drained per hour | B15: =B14/24 -> 52.08333333 | C15: mcf/h
A16: =lblPctMethane -> Percent methane in drainage gas | B16: =inputPctMethane/100 -> 0.9 | D16: Use 40% for CNG Feasibility Test
A17: Actual gas flow | B17: =IF(B16<>0,B14/B16,0) -> 1388.888889 | C17: mcf/d
A18: =lblUser16 -> What is the planned project operational lifetime? | B18: =user16 -> 10 | C18: years | E18: lngProjectLifetime
A19: =lblGas6 -> What is the fraction of CMM available after losses? | B19: =gas6zz/100 -> 0.95
A20: Average fuel available | B20: =B15*(B19-B13) -> 45.83333333 | C20: mcf/h | D20: excludes fugitive and primemover use
A21: Fuel value | B21: =B20*B31/1000 -> 41.70833333 | C21: mmBtu/h
A23: =lblDefault5 -> How many hours per year will the project operate? | B23: =default5 -> 0 | C23: hours/yr | D23: Defaults Parameter page | F23: 8000 | G23: 7500-8300
A24: =lblUser32 -> What is the installed capital cost of the LNG system? | B24: =User32 -> 0 | C24: $,000 | D24: User Defined Input Page | F24: =OFFSET(User32,0,1) -> 3000 | G24: =OFFSET(User32,0,4) -> [2,000-4,000]
A25: =lblUser2 -> What is the cost of electric power used by the project? | B25: =user2 -> 0 | C25: $/MW | D25: User Defined Input Page | F25: 70 | G25: 50-90
A26: =lblUser29 -> What is the price of sold LNG? | B26: =user29 -> 0 | C26: $/MMBtu | D26: User Defined Input Page | F26: =OFFSET(user29,0,1) -> 0 | G26: =OFFSET(user29,0,4) -> [2-20] | I26: $/MMBtu
A27: =lblUser37 -> What is the cost of the oxygen removal system? | B27: =user37 -> 0 | C27: $,000 | D27: User Defined Input Page - added May 2015 | F27: 1250
A28: =lblDrain10 -> What is the fraction of this project's drainage system cost that will be included in the analysis? | B28: =drainage10/100 -> 0 | D28: added by JC 6/25
A29: Drainage and Transport sys unit cap cost | B29: =IF((B14*B19)<>0,(B3*B6)+(B4*B5*B16/(B14*B19))+(IF(B10="AM",B7*B5*B9*B16/(B14*B19),0))+ (B28*IF(inputDrainageSystem="Y",(B2*B6)+IF(B10="AM",B11*B12*B9*B16/(B14*B19),0),0)),0) -> 671.6315789 | C29: $/mcfd | D29: "X", tweaked by JC 6/25
A30: Drainage and Transport O&M cost | B30: =IF(AND(inputDrainageSource="GW",(B14*B19)<>0,B23<>0),((B8*B5)+IF(AND(inputDrainageSystem="Y",B7<>0),B8*B11*B12*B28/B7,0))*B16*24/(B14*B19)/B23,0) -> 0 | C30: $/mcf | D30: "Y", tweaked by JC 6/25
A31: CMM fuel value LHV | B31: 910 | C31: Btu/cf | D31: constant
A32: Weight of methane, tonnes | B32: 0.01926 | C32: tonnes/mcf | D32: constant
A33: =lblUser8 -> What is the carbon credit unit sale price? | B33: =user8 -> 2 | C33: $/tonne CO2E | E33: CER_UnitValue
A34: GWP ratio: methane to CO2 | B34: =default20 -> 25 | C34: ratio | D34: constant
A35: =lblDefault21 -> What is the inflation rate? | B35: =default21/100 -> 0.025 | E35: InflationRate
A36: =lblDefault26 -> What is the real discount rate? | B36: =default26/100 -> 0.12 | E36: RealDiscountRate
A37: =lblUser12 -> What is the developer's equity share in the project? | B37: =user12/100 -> 1 | E37: EquityPercent
A38: =lblUser15 -> What is the loan term? | B38: =user15 -> 5 | C38: yr | E38: loanTerm
A39: =lblUser5 -> What interest rate is charged for the loan? | B39: =user5/100 -> 0 | E39: InterestRate
A40: Cap Cost Factors
A41: =lblDefault7 -> What is the contingency factor? | B41: =default7/100 -> 0.05
A42: =lblDefault14 -> What are the "soft" costs for the project? | B42: =default14/100 -> 0.05
A43: Annual Cost Factors
A44: =lblDefault15 -> What is the validation, verification and transaction cost to monetize carbon credits? | B44: =default15 -> 0.5 | C44: $/tCO2e
A45: =lblUser33 -> What is the O&M cost of the LNG system? | B45: =User33 -> 0 | C45: $/mcf
A46: =lblDefault11 -> What are the royalty and severance taxes? | B46: =default11/100 -> 0
A48: CMM fuel value HHV | B48: 1010 | C48: Btu/cf | D48: constant
A49: 2 - Feasibility Test
A50: CMM combusted in gathering sys. prime movers | B50: =B13*B15 -> 3.645833333 | C50: mcf/h | D50: =_xlfn.FORMULATEXT(B50) -> =B13*B15
A51: CMM entering processing system | B51: =heatAvailable -> 45.83333333 | C51: mcf/h | D51: =_xlfn.FORMULATEXT(B51) -> =heatAvailable
A52: CMM volume after processing (before liquefaction) | B52: =B20*(0.959-0.2644*(1-B16)) -> 42.74233333 | C52: mcf/h | D52: =_xlfn.FORMULATEXT(B52) -> =B20*(0.959-0.2644*(1-B16)) | J52: 0.959 and 0.2644 come from the regression equation of the graph in fig 2 on page 36 of the original manual
A53: CMM available for other uses | B53: 0 | C53: mcf/d | D53: =_xlfn.FORMULATEXT(B53) -> 
A55: 3 - Calculate Annual Benefits
A57: LNG volume produced | B57: =B52*B31*1000*0.9/1000000 -> 35.005971 | C57: MMBtu/h | D57: =_xlfn.FORMULATEXT(B57) -> =B52*B31*1000*0.9/1000000 | J57: 0.9 = 10% of energy lost in liquefaction process
A58: Revenue from LNG sales | B58: =B57*B23*B26/1000 -> 0 | C58: $000/yr
A59: CMM available for carbon credits | B59: =B52+B50 -> 46.38816667 | C59: mcf/h
A60: Tonnes CH4 available for carbon credits | B60: =B59*B32 -> 0.89343609 | C60: t/h
A61: Carbon credits earned per hour | B61: =B60*B34-(IF(B16=0,0,(B51*0.43*24*0.7457*default9/B16/1000))) -> 22.10467725 | C61: t/h | D61: =_xlfn.FORMULATEXT(B61) -> =B60*B34-(IF(B16=0,0,(B51*0.43*24*0.7457*default9/B16/1000))) | J61: 0.43 = compression demands in mmscf/d per hp; 0.7457 = kw/hp default9=electric grid emission factor (tonnes CO2/MWh)
A62: Carbon credits earned per year | B62: =B61*B23 -> 0 | C62: t/y | E62: lngCERsEarnedPerYear
A63: Carbon credit revenue per year | B63: =B62*B33/1000 -> 0 | C63: $000/y
A65: 4 - Calculate New Annual Costs
A66: LNG liquefaction system O&M cost | B66: =(B20*B45)*B23/1000 -> 0 | C66: $000/yr | D66: =_xlfn.FORMULATEXT(B66) -> =(B20*B45)*B23/1000
A67: Processing system O&M cost | B67: =IF(B16<>0,(300)+(0.75*B23*B51/B16/1000)+(B51*B23*B25*0.43*24*0.7457/B16/1000/1000),0) -> 300 | C67: $000/yr | D67: =IF(B16<>0,(300)+(0.75*B23*B51/B16/1000)+(B51*B23*B25*0.43*24*0.7457/B16/1000/1000),0) | L67: Fixed O&M of $300K + variable O&M of $0.75/mcf + cost of electricity used
A68: Drain & transport O&M cost/h | B68: =IF(B16<>0,(B51*B30)/B16,0) -> 0 | C68: $/h | D68: =IF(B16<>0,(B51*B30)/B16,0) | L68: 0.43 = compression demands in mmscf/d per hp
A69: Drain & transport O&M cost/y | B69: =B68*B23/1000 -> 0 | C69: $000/y | D69: =B68*B23/1000 | L69: 0.7457 = kw/hp
A70: Carbon credit monetization cost/yr | B70: =B44*lngCERsEarnedPerYear/1000 -> 0 | C70: $000/y | D70: =B44*lngCERsEarnedPerYear/1000 | L70: 24 = hr/d
A71: Royalty and severance taxes | B71: =B58*B46 -> 0 | C71: $000/y | D71: =B58*B46
A72: Total annual cost | B72: =SUM(B66:B71)-B68 -> 300 | C72: $000/y | E72: lngTotalAnnualCost
A74: 5 - Calculate Project Capital Costs
A75: CMM needed per hour | B75: =B51 -> 45.83333333 | C75: mcf/h
A76: CMM transport system | B76: =IF(B16<>0,B29*B75*24/B16/1000,0) -> 820.8830409 | C76: $,000 | D76: =_xlfn.FORMULATEXT(B76) -> =IF(B16<>0,B29*B75*24/B16/1000,0)
A77: Installed Cost of Processing Plant | B77: =IF(B16<>0,(B27)+(936)+(B51*24*(1.5765*(1-B16)+0.6196)/B16),0) -> 1885.972222 | C77: $,000 | D77: =_xlfn.FORMULATEXT(B77) -> =IF(B16<>0,(B27)+(936)+(B51*24*(1.5765*(1-B16)+0.6196)/B16),0) | F77: Plant cleans gas and compresses to 900 psi | L77: 5/15 Cost of catox now included as user input - (1250 = was fixed cap cost of oxidizer)
A78: Installed Cost of LNG Liquefaction System | B78: =B24 -> 0 | C78: $,000 | D78: =_xlfn.FORMULATEXT(B78) -> =B24 | L78: 936, 1.5765, 0.6196 = come from regression equation on the curve in the Swing absorber graph (p.36 of original manual)
A79: Subtotal | B79: =SUM(B76:B78) -> 2706.855263 | C79: $,000 | D79: =_xlfn.FORMULATEXT(B79) -> =SUM(B76:B78)
A80: Total cap cost with factors | B80: =(B79*(1+B42))*(1+B41) -> 2984.307928 | C80: $,000 | D80: =_xlfn.FORMULATEXT(B80) -> =(B79*(1+B42))*(1+B41) | E80: lngTotalCapCost
A82: 6 - Calculate Loan and Equity
A83: Loan amount | B83: =B80*(1-B37) -> 0 | C83: $000 | E83: lngLoanAmount
A84: Equity amount | B84: =B80*B37 -> 2984.307928 | C84: $000 | E84: lngEquityAmount
A86: 7 - Discounted Cash Flow Analysis | B86: ($000)
A87: Years >>> | B87: 0 | C87: 1 | D87: 2 | E87: 3 | F87: 4 | G87: 5 | H87: 6 | I87: 7 | J87: 8 | K87: 9 | L87: 10 | M87: 11 | N87: 12 | O87: 13 | P87: 14 | Q87: 15 | R87: 16 | S87: 17 | T87: 18 | U87: 19 | V87: 20
A88: A - Benefits
A89: Gas Sales Revenues | C89: =IF(C$87<=$B$18,B58,0) -> 0 | D89: =IF(D$87<=$B$18,C89*(1+$B$35),0) -> 0 | E89: 0 | F89: 0 | G89: 0 | H89: 0 | I89: 0 | J89: 0 | K89: 0 | L89: 0 | M89: 0 | N89: 0 | O89: 0 | P89: 0 | Q89: 0 | R89: 0 | S89: 0 | T89: 0 | U89: 0 | V89: 0
A90: Carbon Credit Revenues | D90: =IF(C$87<=$B$18,$B63,0) -> 0 | E90: =IF(D$87<=$B$18,D90*(1+default8/100),0) -> 0 | F90: 0 | G90: 0 | H90: 0 | I90: 0 | J90: 0 | K90: 0 | L90: 0 | M90: 0 | N90: 0 | O90: 0 | P90: 0 | Q90: 0 | R90: 0 | S90: 0 | T90: 0 | U90: 0 | V90: 0 | W90: 0
A91: Total Benefits | C91: =SUM(C89:C90) -> 0 | D91: 0 | E91: 0 | F91: 0 | G91: 0 | H91: 0 | I91: 0 | J91: 0 | K91: 0 | L91: 0 | M91: 0 | N91: 0 | O91: 0 | P91: 0 | Q91: 0 | R91: 0 | S91: 0 | T91: 0 | U91: 0 | V91: 0
A92: B - Costs
A93: Annual Drainage and Project O&M Cost | C93: =IF(C$87<=$B$18,-B72,0) -> -300 | D93: =IF(D$87<=$B$18,C93*(1+$B$35),0) -> -307.5 | E93: -315.1875 | F93: -323.0671875 | G93: -331.1438672 | H93: -339.4224639 | I93: -347.9080255 | J93: -356.6057261 | K93: -365.5208693 | L93: -374.658891 | M93: 0 | N93: 0 | O93: 0 | P93: 0 | Q93: 0 | R93: 0 | S93: 0 | T93: 0 | U93: 0 | V93: 0
A94: C - Cash Flow from Operations | C94: =SUM(C91:C93) -> -300 | D94: -307.5 | E94: -315.1875 | F94: -323.0671875 | G94: -331.1438672 | H94: -339.4224639 | I94: -347.9080255 | J94: -356.6057261 | K94: -365.5208693 | L94: -374.658891 | M94: 0 | N94: 0 | O94: 0 | P94: 0 | Q94: 0 | R94: 0 | S94: 0 | T94: 0 | U94: 0 | V94: 0
A96: D - Debt Service | C96: =IF(OR(C$87>$B$38,C$87>$B$18),0, PMT($B$39, $B$38, $B$83)) -> 0 | D96: 0 | E96: 0 | F96: 0 | G96: 0 | H96: 0 | I96: 0 | J96: 0 | K96: 0 | L96: 0 | M96: 0 | N96: 0 | O96: 0 | P96: 0 | Q96: 0 | R96: 0 | S96: 0 | T96: 0 | U96: 0 | V96: 0
A97: E - Net Cash Flow | B97: =-B84 -> -2984.307928 | C97: =SUM(C94:C96) -> -300 | D97: =SUM(D94:D96) -> -307.5 | E97: -315.1875 | F97: -323.0671875 | G97: -331.1438672 | H97: -339.4224639 | I97: -347.9080255 | J97: -356.6057261 | K97: -365.5208693 | L97: -374.658891 | M97: 0 | N97: 0 | O97: 0 | P97: 0 | Q97: 0 | R97: 0 | S97: 0 | T97: 0 | U97: 0 | V97: 0
A99: 8 - Financial Measurements: IRR, NPV, Payback
A100: Internal Rate of Return - IRR | C100: =IF(ISERR(IRR($B97:V97)),0,IRR($B97:V97)) -> 0 | D100: IRR needs at least one positive cash flow value. ISERR catches error and returns "0"
A101: Net Present Value | C101: =NPV(B36,C97:V97)+lngMinusEquityAmount -> -4840.666989
A102: Payback Period | C102: =SUM(C104:V104) -> 0
B103: =IF(B$87<=$B$18,SUM($B97:B97),0) -> -2984.307928 | C103: =IF(C$87<=$B$18,SUM($B97:C97),0) -> -3284.307928 | D103: =IF(D$87<=$B$18,SUM($B97:D97),0) -> -3591.807928 | E103: =IF(E$87<=$B$18,SUM($B97:E97),0) -> -3906.995428 | F103: =IF(F$87<=$B$18,SUM($B97:F97),0) -> -4230.062615 | G103: =IF(G$87<=$B$18,SUM($B97:G97),0) -> -4561.206482 | H103: =IF(H$87<=$B$18,SUM($B97:H97),0) -> -4900.628946 | I103: =IF(I$87<=$B$18,SUM($B97:I97),0) -> -5248.536972 | J103: =IF(J$87<=$B$18,SUM($B97:J97),0) -> -5605.142698 | K103: =IF(K$87<=$B$18,SUM($B97:K97),0) -> -5970.663567 | L103: =IF(L$87<=$B$18,SUM($B97:L97),0) -> -6345.322458 | M103: =IF(M$87<=$B$18,SUM($B97:M97),0) -> 0 | N103: =IF(N$87<=$B$18,SUM($B97:N97),0) -> 0 | O103: =IF(O$87<=$B$18,SUM($B97:O97),0) -> 0 | P103: =IF(P$87<=$B$18,SUM($B97:P97),0) -> 0 | Q103: =IF(Q$87<=$B$18,SUM($B97:Q97),0) -> 0 | R103: =IF(R$87<=$B$18,SUM($B97:R97),0) -> 0 | S103: =IF(S$87<=$B$18,SUM($B97:S97),0) -> 0 | T103: =IF(T$87<=$B$18,SUM($B97:T97),0) -> 0 | U103: =IF(U$87<=$B$18,SUM($B97:U97),0) -> 0 | V103: =IF(V$87<=$B$18,SUM($B97:V97),0) -> 0
C104: =IF(AND(C103>0,B103<0),C87+(1-C103/C97),0) -> 0 | D104: =IF(AND(D103>0,C103<0),D87+(1-D103/D97),0) -> 0 | E104: 0 | F104: 0 | G104: 0 | H104: 0 | I104: 0 | J104: 0 | K104: 0 | L104: 0 | M104: 0 | N104: 0 | O104: 0 | P104: 0 | Q104: 0 | R104: 0 | S104: 0 | T104: 0 | U104: 0 | V104: 0

Sheet Report
A1: Coalmine Methane Scenario: new_US
A3: Estimated Outputs:
B4: Available CMM for other projects | C4: 0 | D4: mcf/d
B5: Total capital cost | C5: 6398000 | D5: $
B6: Total annual cost | C6: 1247000 | D6: $/year
B7: Equity amount | C7: 6398000 | D7: $
B8: Loan amount | C8: 0,000 | D8: $
B9: Carbon credits earned per year | C9: 168956 | D9: tonne/year
B10: Internal rate of return (IRR) | C10: 20.28 | D10: %
B11: Net present value | C11: 2544000 | D11: $
B12: Payback period | C12: 5.4 | D12: years
B13: Installed electrical capacity | C13: 4.28 | D13: MW
A57: Gathering & Delivery System
B58: What is the cost of satellite compressors? | C58: 1000 | D58: $/HP
B59: What is the distance from the drainage area to the onsite project? | C59: 21000 | D59: ft
B60: What is the cost of installing header pipe from the drainage area? | C60: 40 | D60: $/ft
B61: What are the compressor and blower efficiencies? | C61: 0.035 | D61: HP/mcfd
B62: What is the mining rate? | C62: 12000 | D62: ft/yr
B63: What is the spacing between gob drainage wells? | C63: 1000 | D63: ft
A65: Drainage Well & Blower Development Costs: | C65: Not Applicable
B66: What is the cost of well-head blowers? | D66: $/HP
B67: What is the mine depth? | D67: ft
B68: What is the drilling cost? | D68: $/ft
B69: What is the fraction of this project's drainage system cost that will be included in the analysis? | D69: %
A71: Gas Availability:
B72: What is the source of the coal mine methane? | C72: surface gob gas drainage
B73: Percent methane in drainage gas | C73: 90 | D73: %
B74: What do you expect the CMM drained per day to be? | C74: 1250 | D74: mcf/d
B75: What is the fraction of CMM available after losses? | C75: 95 | D75: %
A80: User-Defined Inputs:
B81: What is the planned project operational lifetime? | C81: 10 | D81: years
B82: What is the loan term? | C82: 5 | D82: years
B83: What interest rate is charged for the loan? | C83: 0 | D83: %
B84: What is the developer's equity share in the project? | C84: 100 | D84: %
B85: What is the carbon credit unit sale price? | C85: 2 | D85: $/tonne CO2E
B86: What percent of CMM is consumed by prime-mover use? | C86: 7 | D86: %
B87: For what price can CMM-based electricity be sold? | C87: 0.07 | D87: $/kWh
B88: Capital cost of treatment, engine-gen set, & electrical equipment? | C88: 1.15 | D88: $000/kW
B89: What is the O&M cost of the reciprocating engine? | C89: 0.02 | D89: $/kWh
B90: What is the overall efficiency of the engine-generator set? | C90: 35 | D90: % (LHV)
A97: Default Parameters:
B98: What is the inflation rate? | C98: 2.5 | D98: %
B99: What is the real discount rate? | C99: 12 | D99: %
B100: What are the royalty and severance taxes? | C100: 0 | D100: %
B101: What is the contingency factor? | C101: 5 | D101: %
B102: What is the annual escalation rate for carbon credits? | C102: 2 | D102: %
B103: What are the "soft" costs for the project? | C103: 5 | D103: %
B104: What is the validation, verification and transaction cost to monetize carbon credits? | C104: 0.5 | D104: $/tCO2e
B105: Which GWP value is used? | C105: 25
B106: How many hours per year will the engine operate? | C106: 8000 | D106: hrs/year

Sheet Report2 (hidden)
A1: Coalmine Methane Scenario: yy
A3: Estimated Outputs:
B4: Total capital cost | C4: 12128000 | D4: $
B5: Total annual cost | C5: 2,775,000 | D5: $/year
B6: Equity amount | C6: 12128000 | D6: $
B7: Loan amount | C7: 0,000 | D7: $
B8: Carbon credits earned per year | C8: 474370 | D8: tonne/year
B9: Internal rate of return (IRR) | C9: 0 | D9: %
B10: Net present value | C10: -24,156,000 | D10: $
B11: Payback Period | C11: n/a | D11: years
A46: Gas Availability
B47: What percent methane is in the ventilation air? | C47: 0.5 | D47: %
B48: What do you expect the recoverable ventilation air flow to be? | C48: 500 | D48: mcf/m
A51: User-Defined Inputs
B52: What is the planned project operational lifetime? | C52: 10 | D52: years
B53: What is the loan term? | C53: 5 | D53: years
B54: What interest rate is charged for the loan? | C54: 0 | D54: %
B55: What is the developer's equity share in the project? | C55: 100 | D55: %
B56: What is the carbon credit unit sale price? | C56: 2 | D56: $/tonne CO2E
B57: What is the installed capital cost of the VAM oxidation system? | C57: 22 | D57: $/cfm
B58: What is the annual operating and maintenance of the VAM system? | C58: 1 | D58: $/cfm-yr
B59: What is the frequency VAM system will be relocated? | C59: 7 | D59: years
B60: What is VAM system relocation cost (incl. new site prep)? | C60: 3 | D60: $/cfm
B61: What is the electrical load of the oxidizer blowers? | C61: 0.1 | D61: kWh/mcf
B62: What is the cost of electric power used by the project? | C62: 70 | D62: $/MWh
A65: Default Parameters:
B66: What is the inflation rate? | C66: 2.5 | D66: %
B67: What is the real discount rate? | C67: 12 | D67: %
B68: What are the royalty and severance taxes? | C68: 4 | D68: %
B69: What is the contingency factor? | C69: 5 | D69: %
B70: How many hours per year will the VAM system operate? | C70: 8000 | D70: hrs/year
B71: What are the "soft" costs for the project? | C71: 5 | D71: %
B72: What is the validation, verification and transaction cost to monetize carbon credits? | C72: 0.5 | D72: $/tCO2e

Sheet reportWork (hidden)
A1: 1 | B1: 2 | C1: 3 | D1: 4 | E1: 5 | F1: 6 | G1: 7 | H1: 8 | I1: 9 | J1: 10
A2: 0 | B2: 0 | C2: 0 | D2: 0 | E2: 0 | F2: 0 | G2: 0 | H2: 0 | I2: 0 | J2: 0

Sheet DevNotes (hidden)
A1: Reporting: | B1: Most scenario worksheets need the following named ranges defined on that sheet, where Xxx is the scenario prefix. The six scenario prefixes are currently coal, boiler, engine, cflare, oflare, and pipeline.
B2: ___: xxxCmmDrained
B3: B16: XxxProjectLifetime
B4: B33: XxxCER_UnitValue
B5: B35: XxxInflationRate
B6: B36: XxxRealDiscountRate
B7: B37: XxxEquityPercent
B8: B38: XxxLoanTerm
B9: B39: XxxInterestRate
B10: ___: heatAvailable
B11: ___: heatNeeded
B12: B48: XxxCmmAvailable
B13: B57: XxxCersEarnedPerYear
B14: B64: XxxTotalAnnualCost
B15: B71: XxxTotalCapCost
B16: B74: XxxLoanAmount
B17: B75: XxxEquityAmount
B18: C80: XxxSavingsYear1
B19: C81: XxxCerRevYear1
B20: C84: XxxCmmCostsYear1
B21: B88: XxxMinusEquityAmount
B22: B__: xxxSavingsPerYear1
B23: C__: xxxSavings
B24: C__: xxxCerRevYear1
B25: C__: xxxCmmCostsYear1
B26: C__: xxxIRR
B27: CashFlowAnalysis
A29: Goal Seek: | B29: GoalSeek updates one of three inputs that the user had specified in order to achieve a certain IRR. These updates are done with direct cell references since the goal seek function didn't work when named ranges were used. The three input fields updated directly are Interest Rate, Equity Percent, and CER Unit Price.
